Body Name,Body,Service Division Label,Service Division Code,Organisational Unit,Expenditure Category,Expenditure Code,CIPFA detailed expediture type,CIPFA detailed expediture code,Narrative,Date,Transaction number,Net Amount,Capital and Revenue,Supplier Name,Supplier ID
Chorley Borough Council,http://statistics.data.gov.uk/id/local-authority/30UE,Homelessness,1075,NEW Early Intervention,Computer Software-Maintenance,40107,Communication and Computing,5028,Provision of services as defined in AFR: 2445 - CBL: Hosting for Places for People from 01/07/2016 to 30/06/2017. Including ,10/08/2016,114674,"3,614.00",Revenue,Abritas Ltd,47473
Chorley Borough Council,http://statistics.data.gov.uk/id/local-authority/30UE,Homelessness,1075,NEW Early Intervention,Computer Software-Maintenance,40107,Communication and Computing,5028,Provision of services as defined in AFR: 2439 CBL: Hosting for Chorley Community Housing from 01/07/2016 - 30/06/2017. ,12/08/2016,114781,"3,614.00",Revenue,Abritas Ltd,47473
Chorley Borough Council,http://statistics.data.gov.uk/id/local-authority/30UE,Service Management & Support,1009,NEW Customer & Digital,External Contractor,40198,Miscellaneous Expenses,5034,Carryout works to reinforce footpath in Astley Park as requested,05/08/2016,114416,170.00,Revenue,Adlington Dry Stone Walling,63372
Chorley Borough Council,http://statistics.data.gov.uk/id/local-authority/30UE,Service Management & Support,1009,NEW Customer & Digital,External Contractor,40198,Miscellaneous Expenses,5034,labour,05/08/2016,114416,200.00,Revenue,Adlington Dry Stone Walling,63372
Chorley Borough Council,http://statistics.data.gov.uk/id/local-authority/30UE,Parking Services,1066,NEW Customer & Digital,External Contractor,40198,Miscellaneous Expenses,5034,Carryout works at West St car park to remove damage flags and reinstate new flags around new  fence as per your quotation ,26/08/2016,114662,"1,540.00",Revenue,Adlington Dry Stone Walling,63372
Chorley Borough Council,http://statistics.data.gov.uk/id/local-authority/30UE,Parking Services,1066,NEW Customer & Digital,External Contractor,40198,Miscellaneous Expenses,5034,miscellaneous expense,26/08/2016,114662,940.00,Revenue,Adlington Dry Stone Walling,63372
Chorley Borough Council,http://statistics.data.gov.uk/id/local-authority/30UE,Service Management & Support,1009,NEW Customer & Digital,External Contractor,40198,Miscellaneous Expenses,5034,Prepare and paint 37 benches in Astley Park as per quotation sent to NAME REDACTED,03/08/2016,114287,"2,350.00",Revenue,Pricepainters&decorators,75750
Chorley Borough Council,http://statistics.data.gov.uk/id/local-authority/30UE,Unapportionable Central OHeads,1009,NEW Policy & Governance,Fire Alarms,20072,Fixtures and Fittings,5010,town hall fire july 16 - july 17,12/08/2016,113990,"1,000.35",Revenue,ADT Fire & Security,16645
Chorley Borough Council,http://statistics.data.gov.uk/id/local-authority/30UE,Unapportionable Central OHeads,1009,NEW Business Development & Growth,Planned Maintenance,20006,Repairs Maintenance & Alts,5005,Blanket order for PPM works for 2015/6.,05/08/2016,114323,939.43,Revenue,ADT Fire & Security,16645
Chorley Borough Council,http://statistics.data.gov.uk/id/local-authority/30UE,Unapportionable Central OHeads,1009,NEW Business Development & Growth,Planned Maintenance,20006,Repairs Maintenance & Alts,5005,Blanket order for PPM works for 2015/6.,05/08/2016,114324,497.42,Revenue,ADT Fire & Security,16645
Chorley Borough Council,http://statistics.data.gov.uk/id/local-authority/30UE,Unapportionable Central OHeads,1009,NEW Business Development & Growth,Planned Maintenance,20006,Repairs Maintenance & Alts,5005,Blanket order for PPM works for 2015/6.,05/08/2016,114326,478.05,Revenue,ADT Fire & Security,16645
Chorley Borough Council,http://statistics.data.gov.uk/id/local-authority/30UE,Unapportionable Central OHeads,1009,NEW Business Development & Growth,Planned Maintenance,20006,Repairs Maintenance & Alts,5005,Blanket order for PPM works for 2015/6.,05/08/2016,114327,478.05,Revenue,ADT Fire & Security,16645
Chorley Borough Council,http://statistics.data.gov.uk/id/local-authority/30UE,Unapportionable Central OHeads,1009,NEW Policy & Governance,Fire Alarms,20072,Fixtures and Fittings,5010,REDCARE 10/08/15 - 09/08/16,03/08/2016,114328,346.01,Revenue,ADT Fire & Security,16645
Chorley Borough Council,http://statistics.data.gov.uk/id/local-authority/30UE,Unapportionable Central OHeads,1009,NEW Policy & Governance,Fire Alarms,20072,Fixtures and Fittings,5010,redcare aug 15 - aug 16,03/08/2016,114330,346.01,Revenue,ADT Fire & Security,16645
Chorley Borough Council,http://statistics.data.gov.uk/id/local-authority/30UE,Unapportionable Central OHeads,1009,NEW Business Development & Growth,Planned Maintenance,20006,Repairs Maintenance & Alts,5005,Blanket order for PPM works for 2015/6.,05/08/2016,114333,478.05,Revenue,ADT Fire & Security,16645
Chorley Borough Council,http://statistics.data.gov.uk/id/local-authority/30UE,Unapportionable Central OHeads,1009,NEW Policy & Governance,Fire Alarms,20072,Fixtures and Fittings,5010,union st docket 228129,03/08/2016,114334,416.00,Revenue,ADT Fire & Security,16645
Chorley Borough Council,http://statistics.data.gov.uk/id/local-authority/30UE,Unapportionable Central OHeads,1009,NEW Business Development & Growth,Planned Maintenance,20006,Repairs Maintenance & Alts,5005,Blanket order for PPM works for 2015/6.,17/08/2016,114336,772.69,Revenue,ADT Fire & Security,16645
Chorley Borough Council,http://statistics.data.gov.uk/id/local-authority/30UE,Unapportionable Central OHeads,1009,NEW Business Development & Growth,Planned Maintenance,20006,Repairs Maintenance & Alts,5005,Blanket order for PPM works for 2015/6.,05/08/2016,114338,496.08,Revenue,ADT Fire & Security,16645
Chorley Borough Council,http://statistics.data.gov.uk/id/local-authority/30UE,Unapportionable Central OHeads,1009,NEW Customer & Digital,Burglar Alarms & Security Systems,20075,Fixtures and Fittings,5010,Carryout works to Bengal St alarm system as on invoice number 32207039 -10,05/08/2016,114340,301.73,Revenue,ADT Fire & Security,16645
Chorley Borough Council,http://statistics.data.gov.uk/id/local-authority/30UE,Unapportionable Central OHeads,1009,NEW Business Development & Growth,Planned Maintenance,20006,Repairs Maintenance & Alts,5005,Blanket order for PPM works for 2015/6.,05/08/2016,114341,496.08,Revenue,ADT Fire & Security,16645
Chorley Borough Council,http://statistics.data.gov.uk/id/local-authority/30UE,Unapportionable Central OHeads,1009,NEW Customer & Digital,Burglar Alarms & Security Systems,20075,Fixtures and Fittings,5010,Carryout works to Bengal St alarm system as on invoice number 32249995 -10,05/08/2016,114344,258.63,Revenue,ADT Fire & Security,16645
Chorley Borough Council,http://statistics.data.gov.uk/id/local-authority/30UE,Unapportionable Central OHeads,1009,NEW Policy & Governance,Burglar Alarms & Security Systems,20075,Fixtures and Fittings,5010,maint access town hall,03/08/2016,114345,680.09,Revenue,ADT Fire & Security,16645
Chorley Borough Council,http://statistics.data.gov.uk/id/local-authority/30UE,Business Support,1095,NEW Policy & Governance,Burglar Alarms & Security Systems,20075,Fixtures and Fittings,5010,annexe may 16 - may 17,12/08/2016,114347,319.12,Revenue,ADT Fire & Security,16645
Chorley Borough Council,http://statistics.data.gov.uk/id/local-authority/30UE,Unapportionable Central OHeads,1009,NEW Policy & Governance,Burglar Alarms & Security Systems,20075,Fixtures and Fittings,5010,docket CO060023,03/08/2016,114348,"1,362.00",Revenue,ADT Fire & Security,16645
Chorley Borough Council,http://statistics.data.gov.uk/id/local-authority/30UE,Business Support,1095,NEW Policy & Governance,Fire Alarms,20072,Fixtures and Fittings,5010,annexe fire june 16 - june 17,12/08/2016,114350,341.59,Revenue,ADT Fire & Security,16645
Chorley Borough Council,http://statistics.data.gov.uk/id/local-authority/30UE,Unapportionable Central OHeads,1009,NEW Customer & Digital,Burglar Alarms & Security Systems,20075,Fixtures and Fittings,5010,Carryout works to Bengal St alarm system as on invoice number 32746748-10,05/08/2016,114351,"2,442.49",Revenue,ADT Fire & Security,16645
Chorley Borough Council,http://statistics.data.gov.uk/id/local-authority/30UE,Unapportionable Central OHeads,1009,NEW Business Development & Growth,Planned Maintenance,20006,Repairs Maintenance & Alts,5005,Blanket order for PPM works for 2015/6.,05/08/2016,114353,496.08,Revenue,ADT Fire & Security,16645
Chorley Borough Council,http://statistics.data.gov.uk/id/local-authority/30UE,Unapportionable Central OHeads,1009,NEW Customer & Digital,Burglar Alarms & Security Systems,20075,Fixtures and Fittings,5010,Carryout works to Bengal St alarm system as on invoice number 32989305-10,05/08/2016,114354,471.51,Revenue,ADT Fire & Security,16645
Chorley Borough Council,http://statistics.data.gov.uk/id/local-authority/30UE,Unapportionable Central OHeads,1009,NEW Policy & Governance,Burglar Alarms & Security Systems,20075,Fixtures and Fittings,5010,redcare union st,12/08/2016,114578,363.31,Revenue,ADT Fire & Security,16645
Chorley Borough Council,http://statistics.data.gov.uk/id/local-authority/30UE,Unapportionable Central OHeads,1009,NEW Policy & Governance,Burglar Alarms & Security Systems,20075,Fixtures and Fittings,5010,redcare townhall,12/08/2016,114579,363.31,Revenue,ADT Fire & Security,16645
Chorley Borough Council,http://statistics.data.gov.uk/id/local-authority/30UE,Unapportionable Central OHeads,1009,NEW Business Development & Growth,Planned Maintenance,20006,Repairs Maintenance & Alts,5005,Blanket order for PPM works for 2015/6.,17/08/2016,114813,253.57,Revenue,ADT Fire & Security,16645
Chorley Borough Council,http://statistics.data.gov.uk/id/local-authority/30UE,Unapportionable Central OHeads,1009,NEW Policy & Governance,Fire Alarms,20072,Fixtures and Fittings,5010,"Install access software on new PC with windows 8 with wintacs software on new PC, imported card database, then tested",18/08/2016,114913,402.00,Revenue,ADT Fire & Security,16645
Chorley Borough Council,http://statistics.data.gov.uk/id/local-authority/30UE,Unapportionable Central OHeads,1009,NEW Policy & Governance,Burglar Alarms & Security Systems,20075,Fixtures and Fittings,5010,Engineer Activity Report: CO812301 Contract: X14499 Replaced faulty break glass unit leading into back office rear of customer,18/08/2016,114915,250.26,Revenue,ADT Fire & Security,16645
Chorley Borough Council,http://statistics.data.gov.uk/id/local-authority/30UE,Service Management & Support,1009,NEW Customer & Digital,Supplies-Grounds Maintenance,40025,"Equipment, Furniture & Materia",5023,Replacement Steering work as quoted 315.93,17/08/2016,114618,313.38,Revenue,Aebi Schmidt UK Ltd,17287
Chorley Borough Council,http://statistics.data.gov.uk/id/local-authority/30UE,Service Management & Support,1009,NEW Customer & Digital,Vehicle Maintenance,30045,Direct Transport Costs,5016,Supply items as per quotation as on Quote 20122929/12-08-16 from NAME REDACTED to be delivered to Bengal St depot,24/08/2016,114911,510.27,Revenue,Aebi Schmidt UK Ltd,17287
Chorley Borough Council,http://statistics.data.gov.uk/id/local-authority/30UE,Business Support,1095,NEW Business Development & Growth,Miscellaneous Expenses,40200,Miscellaneous Expenses,5034,Structural Services re Euxton Lane Development,31/08/2016,115090,"6,350.00",Revenue,Alan Johnston Partnership LLP,76100
Chorley Borough Council,http://statistics.data.gov.uk/id/local-authority/30UE,Unapportionable Central OHeads,1009,NEW Customer & Digital,Bank Charges,40151,Miscellaneous Expenses,5034,monthly charges,10/08/2016,114606,"1,943.15",Revenue,Allpay Net Ltd,17242
Chorley Borough Council,http://statistics.data.gov.uk/id/local-authority/30UE,Central Support Services,1009,NEW Policy & Governance,Car Leasing Payment,14100,Direct Employee Expenses,5001,NAME REDACTED,12/08/2016,113015,"3,370.87",Revenue,Alphabet (Uk) Fleet Management Ltd,16651
Chorley Borough Council,http://statistics.data.gov.uk/id/local-authority/30UE,Business Support,1095,NEW Business Development & Growth,Grants To Other Organisations,40127,Grants and Subscriptions,5031,subsidy 1,12/08/2016,114546,621.89,Revenue,NAME REDACTED,76176
Chorley Borough Council,http://statistics.data.gov.uk/id/local-authority/30UE,Business Support,1095,NEW Business Development & Growth,Grants To Other Organisations,40127,Grants and Subscriptions,5031,subsidy 1,31/08/2016,115068,623.00,Revenue,NAME REDACTED,76176
Chorley Borough Council,http://statistics.data.gov.uk/id/local-authority/30UE,Tourism,1039,NEW Policy & Governance,Professional Fees,40063,Services,5027,Performance at Chorley Flower Show,17/08/2016,114817,900.00,Revenue,NAME REDACTED,65367
Chorley Borough Council,http://statistics.data.gov.uk/id/local-authority/30UE,Capital,Capital,NEW Customer & Digital,Main Contractor,3007,Capital Expenditure,Capital,Carryout re-turfing works at front of Coach House Astley Park as per your quotation,05/08/2016,113041,"3,980.00",Capital,AP Broom Landscapes,67257
Chorley Borough Council,http://statistics.data.gov.uk/id/local-authority/30UE,Service Management & Support,1009,NEW Customer & Digital,External Contractor,40198,Miscellaneous Expenses,5034,Carryout strimming of banking`s as per your quote Parish Banking Central Drive banking`s Astley Park Lake banking To be ,05/08/2016,113359,935.00,Revenue,AP Broom Landscapes,67257
Chorley Borough Council,http://statistics.data.gov.uk/id/local-authority/30UE,Democratic Represent and  Mgnt,1007,NEW Business Development & Growth,Maintenance/Nature Reserves,20045,Grounds Maintenance Costs,5013,Control of Balsam on Carr Brook,17/08/2016,114815,900.00,Revenue,AP Broom Landscapes,67257
Chorley Borough Council,http://statistics.data.gov.uk/id/local-authority/30UE,Democratic Represent and  Mgnt,1007,NEW Business Development & Growth,External Contractor,40198,Miscellaneous Expenses,5034,Maintenance work to Rangletts Allotments including IBC tank relocation as per quotation Q805498,17/08/2016,114816,875.00,Revenue,AP Broom Landscapes,67257
Chorley Borough Council,http://statistics.data.gov.uk/id/local-authority/30UE,Capital,Capital,NEW Customer & Digital,Other Contractor,3012,Capital Expenditure,Capital,Carryout works to make steps at Astley Park from Walled garden to footpath near Lake as requested,26/08/2016,114819,"1,890.00",Capital,AP Broom Landscapes,67257
Chorley Borough Council,http://statistics.data.gov.uk/id/local-authority/30UE,Service Management & Support,1009,NEW Customer & Digital,External Contractor,40198,Miscellaneous Expenses,5034,Supply and lay turf as requested at new steps from Astley Park lake to the main field as requested,26/08/2016,114819,200.00,Revenue,AP Broom Landscapes,67257
Chorley Borough Council,http://statistics.data.gov.uk/id/local-authority/30UE,Tourism,1039,NEW Policy & Governance,Promotional Expenses,40159,Miscellaneous Expenses,5034,"1,000 special edition copies of Lancashire Life for each Chorley Flower Show 2015 and 2016",05/08/2016,114393,"2,000.00",Revenue,Archant Life,18930
Chorley Borough Council,http://statistics.data.gov.uk/id/local-authority/30UE,Parking Services,1066,NEW Customer & Digital,External Contractor,40198,Miscellaneous Expenses,5034,Manufacture supply and fit new galvanised fencing to car park wall at West St car park as per your quotation,26/08/2016,114910,"8,975.00",Revenue,Ark Welding Ltd,18154
Chorley Borough Council,http://statistics.data.gov.uk/id/local-authority/30UE,Service Management & Support,1009,NEW Customer & Digital,External Contractor,40198,Miscellaneous Expenses,5034,Supply and fit handrails as on invoice number 017019 as requested,31/08/2016,115093,775.00,Revenue,Ark Welding Ltd,18154
Chorley Borough Council,http://statistics.data.gov.uk/id/local-authority/30UE,Service Management & Support,1009,NEW Customer & Digital,Supplies-Grounds Maintenance,40025,"Equipment, Furniture & Materia",5023,Manufacture and supply park benches as on invoice number 017018 as requested,31/08/2016,115096,780.00,Revenue,Ark Welding Ltd,18154
Chorley Borough Council,http://statistics.data.gov.uk/id/local-authority/30UE,Service Management & Support,1009,NEW Customer & Digital,Tools & Equipment - Maintenance,40005,"Equipment, Furniture & Materia",5023,Carryout aluminium welding repairs to 7 X mower decks as on invoice number 017011 as requested,31/08/2016,115102,420.00,Revenue,Ark Welding Ltd,18154
Chorley Borough Council,http://statistics.data.gov.uk/id/local-authority/30UE,Service Management & Support,1009,NEW Customer & Digital,External Contractor,40198,Miscellaneous Expenses,5034,Manufacture and supply fencing panel at Astley park as on invoice number 017012 as requested,31/08/2016,115103,350.00,Revenue,Ark Welding Ltd,18154
Chorley Borough Council,http://statistics.data.gov.uk/id/local-authority/30UE,Service Management & Support,1009,NEW Customer & Digital,Supplies-Grounds Maintenance,40025,"Equipment, Furniture & Materia",5023,Manufacture and supply 2 x park benches as on invoice number 01707 as requested,31/08/2016,115104,390.00,Revenue,Ark Welding Ltd,18154
Chorley Borough Council,http://statistics.data.gov.uk/id/local-authority/30UE,Unapportionable Central OHeads,1009,NEW Policy & Governance,Car Leasing Payment,14100,Direct Employee Expenses,5001,"Quote: 2630299 Ford Fiesta 1.5 TDCi Titanium X 5dr Hatchback White Diesel Manual CO2 band: 94 Mileage: 10,000 pa Lease: 3 ",12/08/2016,114245,"1,928.52",Revenue,Arnold Clark Finance Ltd,20685
Chorley Borough Council,http://statistics.data.gov.uk/id/local-authority/30UE,Development Control,1091,NEW Policy & Governance,Car Leasing Payment,14100,Direct Employee Expenses,5001,NAME REDACTED,12/08/2016,114645,393.06,Revenue,Arnold Clark Finance Ltd,20685
Chorley Borough Council,http://statistics.data.gov.uk/id/local-authority/30UE,Development Control,1091,NEW Policy & Governance,Car Leasing Payment,14100,Direct Employee Expenses,5001,Car Lease,12/08/2016,114645,31.58,Revenue,Arnold Clark Finance Ltd,20685
Chorley Borough Council,http://statistics.data.gov.uk/id/local-authority/30UE,Control Accounts,Control,NEW Policy & Governance,Manual Control Account,1,Balance Sheet,Balance,Balance Sheet,12/08/2016,114645,-31.58,Revenue,Arnold Clark Finance Ltd,20685
Chorley Borough Council,http://statistics.data.gov.uk/id/local-authority/30UE,Corporate Management,1008,NEW Policy & Governance,Car Leasing Payment,14100,Direct Employee Expenses,5001,NAME REDACTED,12/08/2016,114645,348.00,Revenue,Arnold Clark Finance Ltd,20685
Chorley Borough Council,http://statistics.data.gov.uk/id/local-authority/30UE,Corporate Management,1008,NEW Policy & Governance,Car Leasing Payment,14100,Direct Employee Expenses,5001,Car Lease,12/08/2016,114645,30.24,Revenue,Arnold Clark Finance Ltd,20685
Chorley Borough Council,http://statistics.data.gov.uk/id/local-authority/30UE,Control Accounts,Control,NEW Policy & Governance,Manual Control Account,1,Balance Sheet,Balance,Balance Sheet,12/08/2016,114645,-30.24,Revenue,Arnold Clark Finance Ltd,20685
Chorley Borough Council,http://statistics.data.gov.uk/id/local-authority/30UE,Development Control,1091,NEW Policy & Governance,Car Leasing Payment,14100,Direct Employee Expenses,5001,NAME REDACTED,12/08/2016,114645,336.02,Revenue,Arnold Clark Finance Ltd,20685
Chorley Borough Council,http://statistics.data.gov.uk/id/local-authority/30UE,Development Control,1091,NEW Policy & Governance,Car Leasing Payment,14100,Direct Employee Expenses,5001,Car Lease,12/08/2016,114645,28.03,Revenue,Arnold Clark Finance Ltd,20685
Chorley Borough Council,http://statistics.data.gov.uk/id/local-authority/30UE,Control Accounts,Control,NEW Policy & Governance,Manual Control Account,1,Balance Sheet,Balance,Balance Sheet,12/08/2016,114645,-28.03,Revenue,Arnold Clark Finance Ltd,20685
Chorley Borough Council,http://statistics.data.gov.uk/id/local-authority/30UE,Tourism,1039,NEW Customer & Digital,Furniture - Hire,40013,"Equipment, Furniture & Materia",5023,Hire and installation of Pontoon Bridge for Chorley Flower Show,10/08/2016,114418,"6,562.50",Revenue,Ashtead Plant Hire Company Limited,76117
Chorley Borough Council,http://statistics.data.gov.uk/id/local-authority/30UE,Tourism,1039,NEW Customer & Digital,Tools & Equipment - Hire,40004,"Equipment, Furniture & Materia",5023,Hire and installation of Euromats for Chorley Flower Show event car park Quotation Ref: LJ67322,31/08/2016,115095,"6,777.50",Revenue,Ashtead Plant Hire Company Limited,76117
Chorley Borough Council,http://statistics.data.gov.uk/id/local-authority/30UE,Corporate Management,1008,NEW Chief Executive,Training Course Fees,17010,Indirect Employee Expenses,5002,"157.09 � Inmarsat BGAN Explorer 300 Spare Battery 489.42 � CPN Enclosure Generation 5 All the above pricing is exclusive ",10/08/2016,114228,666.51,Revenue,AST  Systems Ltd,65123
Chorley Borough Council,http://statistics.data.gov.uk/id/local-authority/30UE,Service Management & Support,1009,NEW Customer & Digital,Registered Plant - Maintenance,40247,"Equipment, Furniture & Materia",5023,Supply items as on invoice number 181982,05/08/2016,113553,292.74,Revenue,Balmers Garden Machinery,17075
Chorley Borough Council,http://statistics.data.gov.uk/id/local-authority/30UE,Corporate Management,1008,NEW Policy & Governance,Bank Charges,40151,Miscellaneous Expenses,5034,miscellaneous expense,15/08/2016,114700,721.85,Revenue,Barclaycard Merchant Services,61601
Chorley Borough Council,http://statistics.data.gov.uk/id/local-authority/30UE,Corporate Management,1008,NEW Policy & Governance,Bank Charges,40151,Miscellaneous Expenses,5034,miscellaneous expense,15/08/2016,114701,412.90,Revenue,Barclaycard Merchant Services,61601
Chorley Borough Council,http://statistics.data.gov.uk/id/local-authority/30UE,Corporate Management,1008,NEW Policy & Governance,Bank Charges,40151,Miscellaneous Expenses,5034,miscellaneous expense,15/08/2016,114702,314.06,Revenue,Barclaycard Merchant Services,61601
Chorley Borough Council,http://statistics.data.gov.uk/id/local-authority/30UE,Unapportionable Central OHeads,1009,NEW Customer & Digital,Consultants` Fees,40077,Services,5027,"Support as agreed with Customer, Transactional and ICT services",10/08/2016,114543,"1,760.00",Revenue,REDACTED PERSONAL DATA,22238
Chorley Borough Council,http://statistics.data.gov.uk/id/local-authority/30UE,Business Support,1095,NEW Business Development & Growth,Electricity,20013,Energy Costs,5006,royal oak,26/08/2016,115073,270.87,Revenue,BES Commercial Electricity Ltd,76115
Chorley Borough Council,http://statistics.data.gov.uk/id/local-authority/30UE,Tourism,1039,NEW Policy & Governance,Miscellaneous Expenses,40200,Miscellaneous Expenses,5034,Provision and manning of baby change/feed tent for 2 days for the Chorley Flower Show,05/08/2016,114454,400.00,Revenue,Bespoke Bell Tent Events,76083
Chorley Borough Council,http://statistics.data.gov.uk/id/local-authority/30UE,Tourism,1039,NEW Customer & Digital,Tools & Equipment - Hire,40004,"Equipment, Furniture & Materia",5023,Children`s Fairground rides for Chorley Flower Show 2016,26/08/2016,115043,500.00,Revenue,Bewleys,76203
Chorley Borough Council,http://statistics.data.gov.uk/id/local-authority/30UE,Central Support Services,1009,NEW Early Intervention,Miscellaneous Expenses,40200,Miscellaneous Expenses,5034,consultancy for Private water supplies by the EH department (NAME REDACTED) to conduct risk assessment and associate,24/08/2016,114316,408.64,Revenue,Blackburn with Darwen Borough Council,21000
Chorley Borough Council,http://statistics.data.gov.uk/id/local-authority/30UE,Central Support Services,1009,NEW Early Intervention,Play Events,40181,Miscellaneous Expenses,5034,Provision of Punch and Judy and balloon modelling on Playday 3rd August,24/08/2016,114717,260.00,Revenue,NAME REDACTED,18370
Chorley Borough Council,http://statistics.data.gov.uk/id/local-authority/30UE,Tourism,1039,NEW Policy & Governance,Professional Fees,40063,Services,5027,Professional Fees,24/08/2016,114997,400.00,Revenue,Brighter Blooms,71496
Chorley Borough Council,http://statistics.data.gov.uk/id/local-authority/30UE,Homelessness,1075,NEW Business Development & Growth,Gas,20014,Energy Costs,5006,cotswold house,24/08/2016,114907,918.81,Revenue,British Gas Business,22242
Chorley Borough Council,http://statistics.data.gov.uk/id/local-authority/30UE,Democratic Represent and  Mgnt,1007,NEW Business Development & Growth,Gas,20014,Energy Costs,5006,coach house,24/08/2016,114907,246.08,Revenue,British Gas Business,22242
Chorley Borough Council,http://statistics.data.gov.uk/id/local-authority/30UE,Community Development,1097,NEW Business Development & Growth,Gas,20014,Energy Costs,5006,accounting,24/08/2016,114907,98.99,Revenue,British Gas Business,22242
Chorley Borough Council,http://statistics.data.gov.uk/id/local-authority/30UE,Unapportionable Central OHeads,1009,NEW Business Development & Growth,Gas,20014,Energy Costs,5006,bengal street,24/08/2016,114907,107.20,Revenue,British Gas Business,22242
Chorley Borough Council,http://statistics.data.gov.uk/id/local-authority/30UE,Democratic Represent and  Mgnt,1007,NEW Business Development & Growth,Gas,20014,Energy Costs,5006,astley cottage,24/08/2016,114907,98.85,Revenue,British Gas Business,22242
Chorley Borough Council,http://statistics.data.gov.uk/id/local-authority/30UE,Democratic Represent and  Mgnt,1007,NEW Business Development & Growth,Gas,20014,Energy Costs,5006,clayton brook cc,24/08/2016,114907,74.98,Revenue,British Gas Business,22242
Chorley Borough Council,http://statistics.data.gov.uk/id/local-authority/30UE,Democratic Represent and  Mgnt,1007,NEW Business Development & Growth,Gas,20014,Energy Costs,5006,clayton brook cc,24/08/2016,114907,59.14,Revenue,British Gas Business,22242
Chorley Borough Council,http://statistics.data.gov.uk/id/local-authority/30UE,Democratic Represent and  Mgnt,1007,NEW Business Development & Growth,Gas,20014,Energy Costs,5006,astley village cc,24/08/2016,114907,96.29,Revenue,British Gas Business,22242
Chorley Borough Council,http://statistics.data.gov.uk/id/local-authority/30UE,Democratic Represent and  Mgnt,1007,NEW Business Development & Growth,Gas,20014,Energy Costs,5006,astley hall farm house,24/08/2016,114907,66.34,Revenue,British Gas Business,22242
Chorley Borough Council,http://statistics.data.gov.uk/id/local-authority/30UE,Democratic Represent and  Mgnt,1007,NEW Business Development & Growth,Gas,20014,Energy Costs,5006,eaves green cc,24/08/2016,114907,180.86,Revenue,British Gas Business,22242
Chorley Borough Council,http://statistics.data.gov.uk/id/local-authority/30UE,Unapportionable Central OHeads,1009,NEW Business Development & Growth,Gas,20014,Energy Costs,5006,union street,24/08/2016,114907,853.34,Revenue,British Gas Business,22242
Chorley Borough Council,http://statistics.data.gov.uk/id/local-authority/30UE,Democratic Represent and  Mgnt,1007,NEW Business Development & Growth,Gas,20014,Energy Costs,5006,astley hall,24/08/2016,114907,912.25,Revenue,British Gas Business,22242
Chorley Borough Council,http://statistics.data.gov.uk/id/local-authority/30UE,Unapportionable Central OHeads,1009,NEW Business Development & Growth,Gas,20014,Energy Costs,5006,town hall,24/08/2016,114907,440.33,Revenue,British Gas Business,22242
Chorley Borough Council,http://statistics.data.gov.uk/id/local-authority/30UE,Homelessness,1075,NEW Business Development & Growth,Gas,20014,Energy Costs,5006,cotswold house,24/08/2016,115027,918.81,Revenue,British Gas Business,22242
Chorley Borough Council,http://statistics.data.gov.uk/id/local-authority/30UE,Democratic Represent and  Mgnt,1007,NEW Business Development & Growth,Gas,20014,Energy Costs,5006,coach house,24/08/2016,115027,246.08,Revenue,British Gas Business,22242
Chorley Borough Council,http://statistics.data.gov.uk/id/local-authority/30UE,Community Development,1097,NEW Business Development & Growth,Gas,20014,Energy Costs,5006,accounting,24/08/2016,115027,119.11,Revenue,British Gas Business,22242
Chorley Borough Council,http://statistics.data.gov.uk/id/local-authority/30UE,Unapportionable Central OHeads,1009,NEW Business Development & Growth,Gas,20014,Energy Costs,5006,bengal street,24/08/2016,115027,107.20,Revenue,British Gas Business,22242
Chorley Borough Council,http://statistics.data.gov.uk/id/local-authority/30UE,Democratic Represent and  Mgnt,1007,NEW Business Development & Growth,Gas,20014,Energy Costs,5006,astley cottage,24/08/2016,115027,98.85,Revenue,British Gas Business,22242
Chorley Borough Council,http://statistics.data.gov.uk/id/local-authority/30UE,Democratic Represent and  Mgnt,1007,NEW Business Development & Growth,Gas,20014,Energy Costs,5006,clayton brook cc,24/08/2016,115027,74.98,Revenue,British Gas Business,22242
Chorley Borough Council,http://statistics.data.gov.uk/id/local-authority/30UE,Democratic Represent and  Mgnt,1007,NEW Business Development & Growth,Gas,20014,Energy Costs,5006,clayton brook cc,24/08/2016,115027,59.14,Revenue,British Gas Business,22242
Chorley Borough Council,http://statistics.data.gov.uk/id/local-authority/30UE,Democratic Represent and  Mgnt,1007,NEW Business Development & Growth,Gas,20014,Energy Costs,5006,astley vill cc,24/08/2016,115027,109.90,Revenue,British Gas Business,22242
Chorley Borough Council,http://statistics.data.gov.uk/id/local-authority/30UE,Democratic Represent and  Mgnt,1007,NEW Business Development & Growth,Gas,20014,Energy Costs,5006,astley hall farmhouse,24/08/2016,115027,66.34,Revenue,British Gas Business,22242
Chorley Borough Council,http://statistics.data.gov.uk/id/local-authority/30UE,Democratic Represent and  Mgnt,1007,NEW Business Development & Growth,Gas,20014,Energy Costs,5006,eaves green cc,24/08/2016,115027,180.86,Revenue,British Gas Business,22242
Chorley Borough Council,http://statistics.data.gov.uk/id/local-authority/30UE,Unapportionable Central OHeads,1009,NEW Business Development & Growth,Gas,20014,Energy Costs,5006,union street,24/08/2016,115027,853.34,Revenue,British Gas Business,22242
Chorley Borough Council,http://statistics.data.gov.uk/id/local-authority/30UE,Democratic Represent and  Mgnt,1007,NEW Business Development & Growth,Gas,20014,Energy Costs,5006,astley hall,24/08/2016,115027,912.25,Revenue,British Gas Business,22242
Chorley Borough Council,http://statistics.data.gov.uk/id/local-authority/30UE,Unapportionable Central OHeads,1009,NEW Business Development & Growth,Gas,20014,Energy Costs,5006,town hall,24/08/2016,115027,435.56,Revenue,British Gas Business,22242
Chorley Borough Council,http://statistics.data.gov.uk/id/local-authority/30UE,Central Support Services,1009,NEW Customer & Digital,Telephones - Calls,40084,Communication and Computing,5028,usage,10/08/2016,114445,183.15,Revenue,British Telecommunications Plc,17131
Chorley Borough Council,http://statistics.data.gov.uk/id/local-authority/30UE,Central Support Services,1009,NEW Customer & Digital,Telephones - Other,40085,Communication and Computing,5028,one off,10/08/2016,114445,18.00,Revenue,British Telecommunications Plc,17131
Chorley Borough Council,http://statistics.data.gov.uk/id/local-authority/30UE,Central Support Services,1009,NEW Customer & Digital,Telephones - Rentals,40083,Communication and Computing,5028,recurring,10/08/2016,114445,"2,909.66",Revenue,British Telecommunications Plc,17131
Chorley Borough Council,http://statistics.data.gov.uk/id/local-authority/30UE,Business Support,1095,NEW Business Development & Growth,Grants To Other Organisations,40127,Grants and Subscriptions,5031,big grant,12/08/2016,114428,"2,489.46",Revenue,Buckshaw Bunnies Childcare Ltd (Gelston Manor Day,66660
Chorley Borough Council,http://statistics.data.gov.uk/id/local-authority/30UE,Service Management & Support,1009,NEW Customer & Digital,External Contractor,40198,Miscellaneous Expenses,5034,Carryout emptying of interceptor tank and clearing of gullies on a monthly basis at Bengal St Depot as requested,05/08/2016,112932,325.00,Revenue,C J Lyon,16579
Chorley Borough Council,http://statistics.data.gov.uk/id/local-authority/30UE,Service Management & Support,1009,NEW Customer & Digital,External Contractor,40198,Miscellaneous Expenses,5034,Carryout emptying of interceptor tank and clearing of gullies on a monthly basis at Bengal St Depot as requested,05/08/2016,114142,325.00,Revenue,C J Lyon,16579
Chorley Borough Council,http://statistics.data.gov.uk/id/local-authority/30UE,Service Management & Support,1009,NEW Customer & Digital,External Contractor,40198,Miscellaneous Expenses,5034,Carryout emptying of interceptor tank and clearing of gullies on a monthly basis at Bengal St Depot as requested,17/08/2016,114792,325.00,Revenue,C J Lyon,16579
Chorley Borough Council,http://statistics.data.gov.uk/id/local-authority/30UE,Service Management & Support,1009,NEW Customer & Digital,Vehicle Maintenance,30045,Direct Transport Costs,5016,Carryout pre MOT inspection and repairs on DK07LDE take for annual test as required,26/08/2016,114621,"1,570.89",Revenue,C P Davidson & Sons Ltd,21093
Chorley Borough Council,http://statistics.data.gov.uk/id/local-authority/30UE,Service Management & Support,1009,NEW Customer & Digital,Vehicle Maintenance,30045,Direct Transport Costs,5016,Carryout repairs to hopper ram on DK07LDE as per Pro-forma invoice number A52815,24/08/2016,114912,580.05,Revenue,C P Davidson & Sons Ltd,21093
Chorley Borough Council,http://statistics.data.gov.uk/id/local-authority/30UE,Tourism,1039,NEW Policy & Governance,Refreshments,40036,Catering,5024,Stewards lunches for the Chorley Flower Show,12/08/2016,114742,575.62,Revenue,Cafe Ambio,22328
Chorley Borough Council,http://statistics.data.gov.uk/id/local-authority/30UE,Unapportionable Central OHeads,1009,NEW Customer & Digital,Computer - Support Services,40111,Communication and Computing,5028,Re RHEL 6 - To re-write the aisarrudimport binary interface script to work with the new Red Hat 6.  500.,31/08/2016,114961,500.00,Revenue,Capita Business Services Ltd,17151
Chorley Borough Council,http://statistics.data.gov.uk/id/local-authority/30UE,Business Support,1095,NEW Business Development & Growth,Grants To Other Organisations,40127,Grants and Subscriptions,5031,shop grant,12/08/2016,114751,"3,246.82",Revenue,NAME REDACTED,76112
Chorley Borough Council,http://statistics.data.gov.uk/id/local-authority/30UE,Business Support,1095,NEW Business Development & Growth,Grants To Other Organisations,40127,Grants and Subscriptions,5031,grant,12/08/2016,114666,"2,859.69",Revenue,REDACTED,76183
Chorley Borough Council,http://statistics.data.gov.uk/id/local-authority/30UE,Tourism,1039,NEW Policy & Governance,Other Contributions,40145,Grants and Subscriptions,5031,Prize money,05/08/2016,114240,660.00,Revenue,Chorley & District Gardening Society,21287
Chorley Borough Council,http://statistics.data.gov.uk/id/local-authority/30UE,Tourism,1039,NEW Policy & Governance,Miscellaneous Expenses,40200,Miscellaneous Expenses,5034,contribution,26/08/2016,115029,600.00,Revenue,Chorley & District Gardening Society,21287
Chorley Borough Council,http://statistics.data.gov.uk/id/local-authority/30UE,Central Support Services,1009,NEW Chief Executive,Postages,40082,Communication and Computing,5028,postage,10/08/2016,114705,15.45,Revenue,Chorley BC Petty Cash,16301
Chorley Borough Council,http://statistics.data.gov.uk/id/local-authority/30UE,Democratic Represent and  Mgnt,1007,NEW Chief Executive,Fixtures & Fittings - Purchase,20027,Fixtures and Fittings,5010,key cut,10/08/2016,114705,3.54,Revenue,Chorley BC Petty Cash,16301
Chorley Borough Council,http://statistics.data.gov.uk/id/local-authority/30UE,Unapportionable Central OHeads,1009,NEW Chief Executive,Tools & Equipment - Purchase,40003,"Equipment, Furniture & Materia",5023,kettle,10/08/2016,114705,14.99,Revenue,Chorley BC Petty Cash,16301
Chorley Borough Council,http://statistics.data.gov.uk/id/local-authority/30UE,Economic Development,1096,NEW Chief Executive,Miscellaneous Expenses,40200,Miscellaneous Expenses,5034,refreshments,10/08/2016,114705,0.99,Revenue,Chorley BC Petty Cash,16301
Chorley Borough Council,http://statistics.data.gov.uk/id/local-authority/30UE,Economic Development,1096,NEW Chief Executive,Fixtures & Fittings - Purchase,20027,Fixtures and Fittings,5010,extension cable,10/08/2016,114705,3.99,Revenue,Chorley BC Petty Cash,16301
Chorley Borough Council,http://statistics.data.gov.uk/id/local-authority/30UE,Unapportionable Central OHeads,1009,NEW Chief Executive,Refreshments,40036,Catering,5024,coffee,10/08/2016,114705,11.96,Revenue,Chorley BC Petty Cash,16301
Chorley Borough Council,http://statistics.data.gov.uk/id/local-authority/30UE,Unapportionable Central OHeads,1009,NEW Chief Executive,Tools & Equipment - Purchase,40003,"Equipment, Furniture & Materia",5023,wrist support,10/08/2016,114705,14.99,Revenue,Chorley BC Petty Cash,16301
Chorley Borough Council,http://statistics.data.gov.uk/id/local-authority/30UE,Democratic Represent and  Mgnt,1007,NEW Chief Executive,Stationery,40050,"Printing, Stationery & General",5026,foam board,10/08/2016,114705,13.32,Revenue,Chorley BC Petty Cash,16301
Chorley Borough Council,http://statistics.data.gov.uk/id/local-authority/30UE,Democratic Represent and  Mgnt,1007,NEW Chief Executive,Stationery,40050,"Printing, Stationery & General",5026,foam board,10/08/2016,114705,13.32,Revenue,Chorley BC Petty Cash,16301
Chorley Borough Council,http://statistics.data.gov.uk/id/local-authority/30UE,Democratic Represent and  Mgnt,1007,NEW Chief Executive,Stationery,40050,"Printing, Stationery & General",5026,foam board,10/08/2016,114705,13.32,Revenue,Chorley BC Petty Cash,16301
Chorley Borough Council,http://statistics.data.gov.uk/id/local-authority/30UE,Unapportionable Central OHeads,1009,NEW Chief Executive,Refreshments,40036,Catering,5024,wine,10/08/2016,114705,10.03,Revenue,Chorley BC Petty Cash,16301
Chorley Borough Council,http://statistics.data.gov.uk/id/local-authority/30UE,Central Support Services,1009,NEW Chief Executive,Mobile Phones,40086,Communication and Computing,5028,mobile device trial,10/08/2016,114705,11.00,Revenue,Chorley BC Petty Cash,16301
Chorley Borough Council,http://statistics.data.gov.uk/id/local-authority/30UE,Democratic Represent and  Mgnt,1007,NEW Chief Executive,Use Of Transport - Mayoral Car,30015,Transport Recharges,5017,car wash,10/08/2016,114705,5.00,Revenue,Chorley BC Petty Cash,16301
Chorley Borough Council,http://statistics.data.gov.uk/id/local-authority/30UE,Unapportionable Central OHeads,1009,NEW Chief Executive,Refreshments,40036,Catering,5024,milk and sugar,10/08/2016,114705,3.58,Revenue,Chorley BC Petty Cash,16301
Chorley Borough Council,http://statistics.data.gov.uk/id/local-authority/30UE,Democratic Represent and  Mgnt,1007,NEW Chief Executive,Refreshments,40036,Catering,5024,fruit juice cartons,10/08/2016,114705,18.00,Revenue,Chorley BC Petty Cash,16301
Chorley Borough Council,http://statistics.data.gov.uk/id/local-authority/30UE,Democratic Represent and  Mgnt,1007,NEW Chief Executive,Use Of Transport - Mayoral Car,30015,Transport Recharges,5017,car wash,10/08/2016,114705,5.00,Revenue,Chorley BC Petty Cash,16301
Chorley Borough Council,http://statistics.data.gov.uk/id/local-authority/30UE,Democratic Represent and  Mgnt,1007,NEW Chief Executive,Use Of Transport - Mayoral Car,30015,Transport Recharges,5017,fuel,10/08/2016,114705,12.51,Revenue,Chorley BC Petty Cash,16301
Chorley Borough Council,http://statistics.data.gov.uk/id/local-authority/30UE,Democratic Represent and  Mgnt,1007,NEW Chief Executive,Tools & Equipment - Purchase,40003,"Equipment, Furniture & Materia",5023,thermometers,10/08/2016,114705,6.86,Revenue,Chorley BC Petty Cash,16301
Chorley Borough Council,http://statistics.data.gov.uk/id/local-authority/30UE,Democratic Represent and  Mgnt,1007,NEW Chief Executive,Refreshments,40036,Catering,5024,tea sugar milk,10/08/2016,114705,8.48,Revenue,Chorley BC Petty Cash,16301
Chorley Borough Council,http://statistics.data.gov.uk/id/local-authority/30UE,Democratic Represent and  Mgnt,1007,NEW Chief Executive,Refreshments,40036,Catering,5024,washing up liquid,10/08/2016,114705,0.83,Revenue,Chorley BC Petty Cash,16301
Chorley Borough Council,http://statistics.data.gov.uk/id/local-authority/30UE,Democratic Represent and  Mgnt,1007,NEW Chief Executive,Fixtures & Fittings - Purchase,20027,Fixtures and Fittings,5010,keys cut,10/08/2016,114705,16.67,Revenue,Chorley BC Petty Cash,16301
Chorley Borough Council,http://statistics.data.gov.uk/id/local-authority/30UE,Tourism,1039,NEW Chief Executive,Tools & Equipment - Hire,40004,"Equipment, Furniture & Materia",5023,plywood,10/08/2016,114705,17.00,Revenue,Chorley BC Petty Cash,16301
Chorley Borough Council,http://statistics.data.gov.uk/id/local-authority/30UE,Tourism,1039,NEW Chief Executive,Tools & Equipment - Hire,40004,"Equipment, Furniture & Materia",5023,plywood,10/08/2016,114705,10.00,Revenue,Chorley BC Petty Cash,16301
Chorley Borough Council,http://statistics.data.gov.uk/id/local-authority/30UE,Unapportionable Central OHeads,1009,NEW Chief Executive,Tools & Equipment - Purchase,40003,"Equipment, Furniture & Materia",5023,carpet cleaner,10/08/2016,114705,5.23,Revenue,Chorley BC Petty Cash,16301
Chorley Borough Council,http://statistics.data.gov.uk/id/local-authority/30UE,Unapportionable Central OHeads,1009,NEW Chief Executive,Tools & Equipment - Purchase,40003,"Equipment, Furniture & Materia",5023,milk,10/08/2016,114705,1.90,Revenue,Chorley BC Petty Cash,16301
Chorley Borough Council,http://statistics.data.gov.uk/id/local-authority/30UE,Democratic Represent and  Mgnt,1007,NEW Chief Executive,Lifelong Learning Activities,40194,Miscellaneous Expenses,5034,school supplies,10/08/2016,114705,3.29,Revenue,Chorley BC Petty Cash,16301
Chorley Borough Council,http://statistics.data.gov.uk/id/local-authority/30UE,Democratic Represent and  Mgnt,1007,NEW Chief Executive,Miscellaneous Expenses,40200,Miscellaneous Expenses,5034,utility keys,10/08/2016,114705,11.00,Revenue,Chorley BC Petty Cash,16301
Chorley Borough Council,http://statistics.data.gov.uk/id/local-authority/30UE,Tourism,1039,NEW Chief Executive,Miscellaneous Expenses,40200,Miscellaneous Expenses,5034,money pen,10/08/2016,114705,12.47,Revenue,Chorley BC Petty Cash,16301
Chorley Borough Council,http://statistics.data.gov.uk/id/local-authority/30UE,Tourism,1039,NEW Chief Executive,Miscellaneous Expenses,40200,Miscellaneous Expenses,5034,money pen,10/08/2016,114705,11.65,Revenue,Chorley BC Petty Cash,16301
Chorley Borough Council,http://statistics.data.gov.uk/id/local-authority/30UE,Tourism,1039,NEW Chief Executive,Safety Signs And Posters,40017,"Equipment, Furniture & Materia",5023,cable ties,10/08/2016,114705,23.00,Revenue,Chorley BC Petty Cash,16301
Chorley Borough Council,http://statistics.data.gov.uk/id/local-authority/30UE,Economic Development,1096,NEW Chief Executive,Miscellaneous Expenses,40200,Miscellaneous Expenses,5034,notebooks,10/08/2016,114705,2.48,Revenue,Chorley BC Petty Cash,16301
Chorley Borough Council,http://statistics.data.gov.uk/id/local-authority/30UE,Business Support,1095,NEW Chief Executive,Miscellaneous Expenses,40200,Miscellaneous Expenses,5034,tabs,10/08/2016,114705,3.33,Revenue,Chorley BC Petty Cash,16301
Chorley Borough Council,http://statistics.data.gov.uk/id/local-authority/30UE,Parking Services,1066,NEW Chief Executive,Miscellaneous Expenses,40200,Miscellaneous Expenses,5034,key chains,10/08/2016,114705,2.92,Revenue,Chorley BC Petty Cash,16301
Chorley Borough Council,http://statistics.data.gov.uk/id/local-authority/30UE,Democratic Represent and  Mgnt,1007,NEW Chief Executive,Use Of Transport - Mayoral Car,30015,Transport Recharges,5017,car wash,10/08/2016,114705,5.00,Revenue,Chorley BC Petty Cash,16301
Chorley Borough Council,http://statistics.data.gov.uk/id/local-authority/30UE,Central Support Services,1009,NEW Chief Executive,Miscellaneous Expenses,40200,Miscellaneous Expenses,5034,reimbursement,10/08/2016,114705,40.00,Revenue,Chorley BC Petty Cash,16301
Chorley Borough Council,http://statistics.data.gov.uk/id/local-authority/30UE,Central Support Services,1009,NEW Chief Executive,Community Develop Initiatives,40185,Miscellaneous Expenses,5034,refreshments,10/08/2016,114705,18.72,Revenue,Chorley BC Petty Cash,16301
Chorley Borough Council,http://statistics.data.gov.uk/id/local-authority/30UE,Corporate Management,1008,NEW Early Intervention,Other Contributions,40145,Grants and Subscriptions,5031,grant,12/08/2016,114639,"10,000.00",Revenue,Chorley Football Club Ltd,21221
Chorley Borough Council,http://statistics.data.gov.uk/id/local-authority/30UE,Service Management & Support,1009,NEW Customer & Digital,Vehicle Maintenance,30045,Direct Transport Costs,5016,Supply 6 X new tyre to FH15MZU as required,17/08/2016,114473,344.00,Revenue,Chorley Tyres,53719
Chorley Borough Council,http://statistics.data.gov.uk/id/local-authority/30UE,Business Support,1095,NEW Business Development & Growth,Grants To Other Organisations,40127,Grants and Subscriptions,5031,subsidy 4,31/08/2016,115069,536.50,Revenue,Chorley Vets,75543
Chorley Borough Council,http://statistics.data.gov.uk/id/local-authority/30UE,Tourism,1039,NEW Policy & Governance,Miscellaneous Expenses,40200,Miscellaneous Expenses,5034,First aid cover for two days of the Chorley Flower Show,05/08/2016,114453,250.00,Revenue,Chorley`s Angels Community Group,63882
Chorley Borough Council,http://statistics.data.gov.uk/id/local-authority/30UE,Tourism,1039,NEW Policy & Governance,Professional Fees,40063,Services,5027,Professional Fees,24/08/2016,114998,550.00,Revenue,Chrysanthemums Direct,76213
Chorley Borough Council,http://statistics.data.gov.uk/id/local-authority/30UE,Unapportionable Central OHeads,1009,NEW Business Development & Growth,General Repairs - Reactive,20004,Repairs Maintenance & Alts,5005,Blanket order for REACTIVE works for 2016.,10/08/2016,114498,362.86,Revenue,Chubb Electronic Sec Sys Ltd,16228
Chorley Borough Council,http://statistics.data.gov.uk/id/local-authority/30UE,Unapportionable Central OHeads,1009,NEW Business Development & Growth,General Repairs - Reactive,20004,Repairs Maintenance & Alts,5005,Blanket order for Reactive works for 2016.,10/08/2016,114450,"3,272.73",Revenue,Classic Lifts Limited,20897
Chorley Borough Council,http://statistics.data.gov.uk/id/local-authority/30UE,Central Support Services,1009,NEW Early Intervention,Community Develop Initiatives,40185,Miscellaneous Expenses,5034,Junior citizens visit Weds 17th August 2016,31/08/2016,115116,250.00,Revenue,Cobble Hey Gardens,66410
Chorley Borough Council,http://statistics.data.gov.uk/id/local-authority/30UE,Public Transport,1067,NEW Customer & Digital,Bus Shelters - Provn/Repl,20061,Grounds Maintenance Costs,5013,Supply and install bus shelter as per your quote ref No 16890 at Westwood Rd Clayton le Woods,05/08/2016,113974,"1,703.00",Revenue,Commutaports,56228
Chorley Borough Council,http://statistics.data.gov.uk/id/local-authority/30UE,Public Transport,1067,NEW Customer & Digital,Bus Shelters - Provn/Repl,20061,Grounds Maintenance Costs,5013,Supply and install bus shelter as per your quote Ref No 16889/2016 at Pilling Lane,05/08/2016,113975,"1,625.00",Revenue,Commutaports,56228
Chorley Borough Council,http://statistics.data.gov.uk/id/local-authority/30UE,Capital,Capital,NEW Business Development & Growth,Main Contractor,3007,Capital Expenditure,Capital,JE5792 16 Installation of grass protection mesh to create access to tennis courts in Astley Park. Scheduled for August 2016,17/08/2016,114880,"6,363.92",Capital,Conservation Contracts North West,20520
Chorley Borough Council,http://statistics.data.gov.uk/id/local-authority/30UE,Democratic Represent and  Mgnt,1007,NEW Policy & Governance,Grants To Other Organisations,40127,Grants and Subscriptions,5031,community grant,10/08/2016,114667,250.00,Revenue,Coppull Primary School-Friends of the School,76182
Chorley Borough Council,http://statistics.data.gov.uk/id/local-authority/30UE,Unapportionable Central OHeads,1009,NEW Business Development & Growth,General Repairs - Reactive,20004,Repairs Maintenance & Alts,5005,Blanket order for Reactive works for 2016.,10/08/2016,114461,908.00,Revenue,Corlett Electrical Eng Co Ltd,16271
Chorley Borough Council,http://statistics.data.gov.uk/id/local-authority/30UE,Unapportionable Central OHeads,1009,NEW Business Development & Growth,General Repairs - Reactive,20004,Repairs Maintenance & Alts,5005,Blanket order for Reactive works for 2016.,12/08/2016,114720,394.72,Revenue,Corlett Electrical Eng Co Ltd,16271
Chorley Borough Council,http://statistics.data.gov.uk/id/local-authority/30UE,Tourism,1039,NEW Policy & Governance,Professional Fees,40063,Services,5027,Professional Fees,24/08/2016,114999,400.00,Revenue,Craig House Cacti,71499
Chorley Borough Council,http://statistics.data.gov.uk/id/local-authority/30UE,Elections,1012,NEW Policy & Governance,Rent/Hire Of Premises,20017,Premises Rents,5007,room hire for polling stations on 5 May 2016 & 23 June 2016,24/08/2016,114962,600.00,Revenue,Croston Trinity Methodist Church,51253
Chorley Borough Council,http://statistics.data.gov.uk/id/local-authority/30UE,Business Support,1095,NEW Business Development & Growth,Grants To Other Organisations,40127,Grants and Subscriptions,5031,BIG Grant,12/08/2016,114640,"4,000.00",Revenue,CSM (Chorley) Ltd,62057
Chorley Borough Council,http://statistics.data.gov.uk/id/local-authority/30UE,Service Management & Support,1009,NEW Customer & Digital,Supplies-Grounds Maintenance,40025,"Equipment, Furniture & Materia",5023,"supply 3 fishing coaching sessions 25th Jul, 1st Aug and 8th August.",17/08/2016,114789,300.00,Revenue,Curwens Angling Centre,61163
Chorley Borough Council,http://statistics.data.gov.uk/id/local-authority/30UE,Service Management & Support,1009,NEW Customer & Digital,Supplies-Grounds Maintenance,40025,"Equipment, Furniture & Materia",5023,Supply 2 coaching sessions for junior fishing,24/08/2016,114985,200.00,Revenue,Curwens Angling Centre,61163
Chorley Borough Council,http://statistics.data.gov.uk/id/local-authority/30UE,Service Management & Support,1009,NEW Customer & Digital,Supplies-Grounds Maintenance,40025,"Equipment, Furniture & Materia",5023,Supply bait and tackle,24/08/2016,114985,60.00,Revenue,Curwens Angling Centre,61163
Chorley Borough Council,http://statistics.data.gov.uk/id/local-authority/30UE,Service Management & Support,1009,NEW Customer & Digital,Supplies-Grounds Maintenance,40025,"Equipment, Furniture & Materia",5023,"2 Balmoral Benches, 1.8m KD",31/08/2016,115117,616.65,Revenue,Cyan,61782
Chorley Borough Council,http://statistics.data.gov.uk/id/local-authority/30UE,Tourism,1039,NEW Customer & Digital,Tools & Equipment - Hire,40004,"Equipment, Furniture & Materia",5023,Remove and transport 20ft container from Botany Bay to Wigan Lane as requested. Please ring 07949164644 half hour before to meet on site,24/08/2016,114894,250.00,Revenue,D Cain & Son Ltd,21353
Chorley Borough Council,http://statistics.data.gov.uk/id/local-authority/30UE,Corporate Management,1008,NEW Customer & Digital,Other Contributions,40145,Grants and Subscriptions,5031,ADDRESS REDACTED,17/08/2016,114823,"5,000.00",Revenue,NAME REDACTED,76198
Chorley Borough Council,http://statistics.data.gov.uk/id/local-authority/30UE,Corporate Management,1008,NEW Customer & Digital,Other Contributions,40145,Grants and Subscriptions,5031,ADDRESS REDACTED,03/08/2016,114426,"5,000.00",Revenue,NAME REDACTED,73902
Chorley Borough Council,http://statistics.data.gov.uk/id/local-authority/30UE,Business Support,1095,NEW Business Development & Growth,Grants To Other Organisations,40127,Grants and Subscriptions,5031,grant,26/08/2016,114897,"2,611.16",Revenue,NAME REDACTED,76207
Chorley Borough Council,http://statistics.data.gov.uk/id/local-authority/30UE,Business Support,1095,NEW Business Development & Growth,Grants To Other Organisations,40127,Grants and Subscriptions,5031,grant,26/08/2016,114897,618.75,Revenue,NAME REDACTED,76207
Chorley Borough Council,http://statistics.data.gov.uk/id/local-authority/30UE,General Government Grants,,NEW Policy & Governance,Revenue Support Grant,69000,Income not in NCOS,,revenue grant,15/08/2016,114158,"-123,318.00",Revenue,Department of Communities and Local Government,16280
Chorley Borough Council,http://statistics.data.gov.uk/id/local-authority/30UE,Collection Fund Revenue Accoun,,NEW Policy & Governance,NNDR Central Share,2034,Precepts & Collection Fund,Precept,surplus,15/08/2016,114158,"1,309,491.00",Revenue,Department of Communities and Local Government,16280
Chorley Borough Council,http://statistics.data.gov.uk/id/local-authority/30UE,Collection Fund Revenue Accoun,,NEW Policy & Governance,NNDR Central Share,2034,Precepts & Collection Fund,Precept,surplus,15/08/2016,114158,"5,474.00",Revenue,Department of Communities and Local Government,16280
Chorley Borough Council,http://statistics.data.gov.uk/id/local-authority/30UE,Tourism,1039,NEW Policy & Governance,Professional Fees,40063,Services,5027,Professional Fees,24/08/2016,115000,325.00,Revenue,Devine Nurseries,71497
Chorley Borough Council,http://statistics.data.gov.uk/id/local-authority/30UE,Service Management & Support,1009,NEW Customer & Digital,Tools & Equipment - Maintenance,40005,"Equipment, Furniture & Materia",5023,Supply items as on delivery note number 021465 already supplied,26/08/2016,115046,447.64,Revenue,Dick Leigh,17138
Chorley Borough Council,http://statistics.data.gov.uk/id/local-authority/30UE,Capital,Capital,NEW Customer & Digital,Other Contractor,3012,Capital Expenditure,Capital,Provision of Project Officer services associated with Ranglett`s Rec. Ground Veterans Allotment Plot.,26/08/2016,114986,"1,560.00",Capital,Dig In North West CIC,74336
Chorley Borough Council,http://statistics.data.gov.uk/id/local-authority/30UE,Capital,Capital,NEW Customer & Digital,Other Contractor,3012,Capital Expenditure,Capital,Provision of Project Officer services associated with Ranglett`s Rec. Ground Veterans Allotment Plot.,24/08/2016,114987,520.00,Capital,Dig In North West CIC,74336
Chorley Borough Council,http://statistics.data.gov.uk/id/local-authority/30UE,Central Support Services,1009,NEW Customer & Digital,Computer Equipment - Security,40106,Communication and Computing,5028,expenses for health check,05/08/2016,108031,349.50,Revenue,Dionach Ltd,22031
Chorley Borough Council,http://statistics.data.gov.uk/id/local-authority/30UE,Unapportionable Central OHeads,1009,NEW Early Intervention,HR Recruitment Expenses,15200,Indirect Employee Expenses,5002,DBS Checks,15/08/2016,113730,660.00,Revenue,Disclosure & Barring Service,16387
Chorley Borough Council,http://statistics.data.gov.uk/id/local-authority/30UE,Tourism,1039,NEW Policy & Governance,Professional Fees,40063,Services,5027,prize money,24/08/2016,114898,250.00,Revenue,East of Eden Nursery,71506
Chorley Borough Council,http://statistics.data.gov.uk/id/local-authority/30UE,Corporate Management,1008,NEW Customer & Digital,Tools & Equipment - Purchase,40003,"Equipment, Furniture & Materia",5023,Large headed RADAR keys,17/08/2016,114581,450.00,Revenue,Easyturn Key Company,16298
Chorley Borough Council,http://statistics.data.gov.uk/id/local-authority/30UE,Corporate Management,1008,NEW Customer & Digital,Tools & Equipment - Purchase,40003,"Equipment, Furniture & Materia",5023,Delivery cost,17/08/2016,114581,12.00,Revenue,Easyturn Key Company,16298
Chorley Borough Council,http://statistics.data.gov.uk/id/local-authority/30UE,Unapportionable Central OHeads,1009,NEW Business Development & Growth,Planned Maintenance,20006,Repairs Maintenance & Alts,5005,Repair to mirror ball as per Invoice 32383.,12/08/2016,114499,588.81,Revenue,Eccleston Electrical Services Limited,17529
Chorley Borough Council,http://statistics.data.gov.uk/id/local-authority/30UE,Elections,1012,NEW Policy & Governance,Rent/Hire Of Premises,20017,Premises Rents,5007,Room hire for polling station on 5 May 2016 and EU Referendum 21 June 2016,24/08/2016,114919,300.00,Revenue,Eccleston Over 60s Club,21590
Chorley Borough Council,http://statistics.data.gov.uk/id/local-authority/30UE,Capital,Capital,NEW Customer & Digital,Surveyors Fees,3021,Capital Expenditure,Capital,"Westway Playing Fields Ecological Surveys: GCN presence / Absence Survey and report 1715 Preliminary bat roost ",17/08/2016,113493,455.00,Capital,Ecology Services,58852
Chorley Borough Council,http://statistics.data.gov.uk/id/local-authority/30UE,Central Support Services,1009,NEW Customer & Digital,Mobile Phones,40086,Communication and Computing,5028,mobile phones,10/08/2016,114462,"2,055.46",Revenue,EE LIMITED,63366
Chorley Borough Council,http://statistics.data.gov.uk/id/local-authority/30UE,Unapportionable Central OHeads,1009,NEW Business Development & Growth,Planned Maintenance,20006,Repairs Maintenance & Alts,5005,Blanket order for PPM works for 2016.,10/08/2016,114503,280.00,Revenue,Ellesmere Engineering Co Ltd,17520
Chorley Borough Council,http://statistics.data.gov.uk/id/local-authority/30UE,Democratic Represent and  Mgnt,1007,NEW Customer & Digital,Supplies-Grounds Maintenance,40025,"Equipment, Furniture & Materia",5023,Hire of units for Chorley Flower Show - Quotation ref: 0030633397 1No. 8X8 STEELCLAD SHOWER 2 BAY - 27th July to 1st ,17/08/2016,114582,458.52,Revenue,Elliott Group Ltd,75668
Chorley Borough Council,http://statistics.data.gov.uk/id/local-authority/30UE,Democratic Represent and  Mgnt,1007,NEW Customer & Digital,Supplies-Grounds Maintenance,40025,"Equipment, Furniture & Materia",5023,Hire of units for Chorley Flower Show - Quotation ref: 0030633397 1No. 8X8 STEELCLAD SHOWER 2 BAY - 27th July to 1st ,17/08/2016,114744,380.04,Revenue,Elliott Group Ltd,75668
Chorley Borough Council,http://statistics.data.gov.uk/id/local-authority/30UE,Unapportionable Central OHeads,1009,NEW Business Development & Growth,Planned Maintenance,20006,Repairs Maintenance & Alts,5005,Blanket order for PPM works for 2016.,03/08/2016,110341,340.00,Revenue,Eurosafe Solutions Limited,66302
Chorley Borough Council,http://statistics.data.gov.uk/id/local-authority/30UE,Unapportionable Central OHeads,1009,NEW Business Development & Growth,Planned Maintenance,20006,Repairs Maintenance & Alts,5005,Blanket order for PPM works for 2016.,03/08/2016,114197,440.00,Revenue,Eurosafe Solutions Limited,66302
Chorley Borough Council,http://statistics.data.gov.uk/id/local-authority/30UE,Economic Development,1096,NEW Business Development & Growth,Miscellaneous Expenses,40200,Miscellaneous Expenses,5034,"For Chorley Council contribution to the Central Lancashire Business Event, October 2016.  (funding held by Events Northern ",05/08/2016,114524,499.00,Revenue,Events Northern Limited,20565
Chorley Borough Council,http://statistics.data.gov.uk/id/local-authority/30UE,Capital,Capital,NEW Customer & Digital,Other Contractor,3012,Capital Expenditure,Capital,Supply and plant up raised beds in glasshouse and external planters in Astley Walled Garden.,05/08/2016,114447,"1,334.75",Capital,Everglades Nurseries Ltd,20202
Chorley Borough Council,http://statistics.data.gov.uk/id/local-authority/30UE,Capital,Capital,NEW Policy & Governance,Purchase Money,3027,Capital Expenditure,Capital,legal costs,03/08/2016,114374,480.00,Capital,Eversheds L.L.P.,17709
Chorley Borough Council,http://statistics.data.gov.uk/id/local-authority/30UE,Tourism,1039,NEW Policy & Governance,Professional Fees,40063,Services,5027,Professional Fees,24/08/2016,115001,400.00,Revenue,Eversley Nursery,71503
Chorley Borough Council,http://statistics.data.gov.uk/id/local-authority/30UE,Tourism,1039,NEW Policy & Governance,Professional Fees,40063,Services,5027,Professional Fees,24/08/2016,115002,400.00,Revenue,Every Picture Tells A Story,71500
Chorley Borough Council,http://statistics.data.gov.uk/id/local-authority/30UE,Central Support Services,1009,NEW Early Intervention,Children's Activities,40188,Miscellaneous Expenses,5034,Provision of ski tuition for Reach Up and Go disability group on Thursday 18th August booked by NAME REDACTED,24/08/2016,114946,270.00,Revenue,Extreme Cool Ltd T/A Chill Factore,59823
Chorley Borough Council,http://statistics.data.gov.uk/id/local-authority/30UE,Service Management & Support,1009,NEW Customer & Digital,Hire Of Transport,30028,Contrct Hire & Operating Lease,5018,Hire of tractor and side arm flail at price quoted via the chest through until 31/03/2017 use order number as from 01/04/2016,21/04/2016,112788,"1,565.29",Revenue,F R Sharrock Ltd,18091
Chorley Borough Council,http://statistics.data.gov.uk/id/local-authority/30UE,Service Management & Support,1009,NEW Customer & Digital,Hire Of Transport,30028,Contrct Hire & Operating Lease,5018,HIRE OF TRACTOR,03/08/2016,113032,"1,639.84",Revenue,F R Sharrock Ltd,18091
Chorley Borough Council,http://statistics.data.gov.uk/id/local-authority/30UE,Service Management & Support,1009,NEW Customer & Digital,Hire Of Transport,30028,Contrct Hire & Operating Lease,5018,tractor and side arm flail at price quoted via the chest through until 31/03/2017 Please use this order number as from 01/04/2016,03/08/2016,114403,"1,565.29",Revenue,F R Sharrock Ltd,18091
Chorley Borough Council,http://statistics.data.gov.uk/id/local-authority/30UE,Service Management & Support,1009,NEW Customer & Digital,Tools & Equipment - Maintenance,40005,"Equipment, Furniture & Materia",5023,Supply items as on Pro-Forma invoice number 114210 as per Email from NAME REDACTED,26/08/2016,114464,"1,877.13",Revenue,F R Sharrock Ltd,18091
Chorley Borough Council,http://statistics.data.gov.uk/id/local-authority/30UE,Service Management & Support,1009,NEW Customer & Digital,Hire Of Transport,30028,Contrct Hire & Operating Lease,5018,tractor and side arm flail at price quoted via the chest through until 31/03/2017 Please use this order number as from 01/04/2016,26/08/2016,114627,"1,341.68",Revenue,F R Sharrock Ltd,18091
Chorley Borough Council,http://statistics.data.gov.uk/id/local-authority/30UE,Tourism,1039,NEW Policy & Governance,External Contractor,40198,Miscellaneous Expenses,5034,Additional marquee works for the Chorley Flower Show,10/08/2016,114367,250.00,Revenue,Field and Lawn Ltd,74977
Chorley Borough Council,http://statistics.data.gov.uk/id/local-authority/30UE,Central Support Services,1009,NEW Early Intervention,Play Events,40181,Miscellaneous Expenses,5034,Provision of Mobile Farm for Playday on Wed 3rd August,24/08/2016,114628,500.00,Revenue,Fishers Mobile Farm,59761
Chorley Borough Council,http://statistics.data.gov.uk/id/local-authority/30UE,Business Support,1095,NEW Business Development & Growth,Promotional Expenses,40159,Miscellaneous Expenses,5034,Site id: GBRT09 Market Walk Chorley - Footfall Annual DFM Covering period of 01/07/2016 - 30/06/2017 Prop Ref: APB: 837,24/08/2016,114895,"3,000.00",Revenue,Footfall Ltd - Tyco Retails Solutions,76208
Chorley Borough Council,http://statistics.data.gov.uk/id/local-authority/30UE,Service Management & Support,1009,NEW Customer & Digital,Vehicle Maintenance,30045,Direct Transport Costs,5016,Axled roadworthiness,17/08/2016,114774,600.00,Revenue,Freight Transport Assoc Ltd,16333
Chorley Borough Council,http://statistics.data.gov.uk/id/local-authority/30UE,Tourism,1039,NEW Policy & Governance,Professional Fees,40063,Services,5027,Professional Fees,24/08/2016,115003,400.00,Revenue,Garden Blooms,76214
Chorley Borough Council,http://statistics.data.gov.uk/id/local-authority/30UE,Business Support,1095,NEW Business Development & Growth,Electricity,20013,Energy Costs,5006,ADDRESS REDACTED,12/08/2016,112287,"1,022.73",Revenue,Gazprom Energy,56502
Chorley Borough Council,http://statistics.data.gov.uk/id/local-authority/30UE,Business Support,1095,NEW Business Development & Growth,Electricity,20013,Energy Costs,5006,ADDRESS REDACTED,12/08/2016,112591,337.68,Revenue,Gazprom Energy,56502
Chorley Borough Council,http://statistics.data.gov.uk/id/local-authority/30UE,Control Accounts,Control,NEW Policy & Governance,Manual Control Account,1,Balance Sheet,Balance,refund credit,12/08/2016,CRREF51,"2,680.13",Revenue,Gazprom Energy,56502
Chorley Borough Council,http://statistics.data.gov.uk/id/local-authority/30UE,Capital,Capital,NEW Customer & Digital,Surveyors Fees,3021,Capital Expenditure,Capital,Additional tree surveying services at Westway.,17/08/2016,113982,350.00,Capital,Godwin�s Arboricultural Ltd,62966
Chorley Borough Council,http://statistics.data.gov.uk/id/local-authority/30UE,Unapportionable Central OHeads,1009,NEW Policy & Governance,HR Approved Training Expenses,17001,Indirect Employee Expenses,5002,2 x Half Day Workshops - Time Management being held on the mornings of: 19 May and 16 August,31/08/2016,115089,450.00,Revenue,Greenfield Training Consultants,21161
Chorley Borough Council,http://statistics.data.gov.uk/id/local-authority/30UE,Capital,Capital,NEW Customer & Digital,Equipment,3014,Capital Expenditure,Capital,"Supply Only play equipment for Buttermere Green Play Area. Pirouette Spinner, Jetsky Springer, Rota Roka, Mini Titan. ",05/08/2016,113771,"5,019.80",Capital,Hags Smp LTD,22492
Chorley Borough Council,http://statistics.data.gov.uk/id/local-authority/30UE,Tourism,1039,NEW Policy & Governance,Professional Fees,40063,Services,5027,Professional Fees,24/08/2016,115008,325.00,Revenue,Hare Spring Cottage Plants,76212
Chorley Borough Council,http://statistics.data.gov.uk/id/local-authority/30UE,Development Control,1091,NEW Customer & Digital,HR Recruitment - Advertising,15300,Indirect Employee Expenses,5002,Job Advert for Principal Planning Officer,12/08/2016,114615,"3,000.00",Revenue,Haymarket Publishing Services Ltd,16347
Chorley Borough Council,http://statistics.data.gov.uk/id/local-authority/30UE,Democratic Represent and  Mgnt,1007,NEW Policy & Governance,Exhibitions,40176,Miscellaneous Expenses,5034,half of invoice,12/08/2016,114741,"4,500.00",Revenue,Heckfords,58862
Chorley Borough Council,http://statistics.data.gov.uk/id/local-authority/30UE,Community Development,1097,NEW Early Intervention,Core Funding Grants,40133,Grants and Subscriptions,5031,Per service level agreement for period 1 April 2016 to 31 March 2017,10/08/2016,114226,"5,000.00",Revenue,Help The Homeless (Chorley),16716
Chorley Borough Council,http://statistics.data.gov.uk/id/local-authority/30UE,Service Management & Support,1009,NEW Customer & Digital,Supplies-Grounds Maintenance,40025,"Equipment, Furniture & Materia",5023,2 pallets of multi purpose compost,17/08/2016,114795,377.00,Revenue,Henry Alty Limited,22048
Chorley Borough Council,http://statistics.data.gov.uk/id/local-authority/30UE,Unapportionable Central OHeads,1009,NEW Business Development & Growth,General Repairs - Reactive,20004,Repairs Maintenance & Alts,5005,2nd Blanket order for REACTIVE works for 2016.,10/08/2016,114509,540.00,Revenue,Henry Nightingale & Son,17923
Chorley Borough Council,http://statistics.data.gov.uk/id/local-authority/30UE,Unapportionable Central OHeads,1009,NEW Business Development & Growth,General Repairs - Reactive,20004,Repairs Maintenance & Alts,5005,2nd Blanket order for REACTIVE works for 2016.,10/08/2016,114511,"1,189.00",Revenue,Henry Nightingale & Son,17923
Chorley Borough Council,http://statistics.data.gov.uk/id/local-authority/30UE,Tourism,1039,NEW Policy & Governance,Professional Fees,40063,Services,5027,Professional Fees,24/08/2016,115009,400.00,Revenue,Hippopottering,76215
Chorley Borough Council,http://statistics.data.gov.uk/id/local-authority/30UE,Central Support Services,1009,NEW Customer & Digital,Miscellaneous Expenses,40200,Miscellaneous Expenses,5034,Manufacture supply and fit new fence and gates around the Leonard Fairclough Memorial garden as per your quote 30/07/2015,05/08/2016,113980,720.88,Revenue,Holt Brothers,75758
Chorley Borough Council,http://statistics.data.gov.uk/id/local-authority/30UE,Central Support Services,1009,NEW Customer & Digital,Miscellaneous Expenses,40200,Miscellaneous Expenses,5034,Manufacture supply and fit new fence and gates around the Leonard Fairclough Memorial garden as per your quote 30/07/2015,17/08/2016,114740,"3,604.44",Revenue,Holt Brothers,75758
Chorley Borough Council,http://statistics.data.gov.uk/id/local-authority/30UE,Tourism,1039,NEW Customer & Digital,Tools & Equipment - Hire,40004,"Equipment, Furniture & Materia",5023,Hire 3 x 6 KVA PORTABLE GENERATOR with wheels.  Please deliver to Bengal St Depot CHORLEY.  HIRE COST = 116.94. ,17/08/2016,114738,373.32,Revenue,Hss Hire Service Group Plc,16736
Chorley Borough Council,http://statistics.data.gov.uk/id/local-authority/30UE,Central Support Services,1009,NEW Customer & Digital,Computer Equipment-Purchase,40098,Communication and Computing,5028,HP EliteDesk 800 65W G2 Desktop Mini  PC Manu. Part#::P1G36ET#ABU,26/08/2016,114613,469.99,Revenue,Insight Direct (UK) LTD,21768
Chorley Borough Council,http://statistics.data.gov.uk/id/local-authority/30UE,Central Support Services,1009,NEW Customer & Digital,Consultants` Fees,40077,Services,5027,Set up and commisioning services: Temporary installation of a wi-fi network at Astley Park to cater for the Flower Show. We will ,05/08/2016,114359,786.00,Revenue,Interconnect Network Systems,21292
Chorley Borough Council,http://statistics.data.gov.uk/id/local-authority/30UE,Business Support,1095,NEW Business Development & Growth,Cleaning/Attendants' Services,20041,Cleaning and Domestic Supplies,5012,To provide daily cleaning services to Market Walk Shopping Centre April 206 - March 2017 @ 4310.21 per month,03/08/2016,114398,"4,310.21",Revenue,Interserve,70619
Chorley Borough Council,http://statistics.data.gov.uk/id/local-authority/30UE,Corporate Management,1008,NEW Customer & Digital,Other Contributions,40145,Grants and Subscriptions,5031,ADDRESS REDACTED,26/08/2016,114982,"5,000.00",Revenue,NAME REDACTED,74842
Chorley Borough Council,http://statistics.data.gov.uk/id/local-authority/30UE,Corporate Management,1008,NEW Customer & Digital,Other Contributions,40145,Grants and Subscriptions,5031,ADDRESS REDACTED,26/08/2016,114983,"5,000.00",Revenue,NAME REDACTED,74842
Chorley Borough Council,http://statistics.data.gov.uk/id/local-authority/30UE,Service Management & Support,1009,NEW Customer & Digital,Supplies-Grounds Maintenance,40025,"Equipment, Furniture & Materia",5023,Please supply 1 pack of Butterley 65mm claughton old Trafford red brick,26/08/2016,115042,235.25,Revenue,Jewsons Limited,17844
Chorley Borough Council,http://statistics.data.gov.uk/id/local-authority/30UE,Service Management & Support,1009,NEW Customer & Digital,Supplies-Grounds Maintenance,40025,"Equipment, Furniture & Materia",5023,"Blue circle mastercrete cement, 25 kg bag",26/08/2016,115042,10.92,Revenue,Jewsons Limited,17844
Chorley Borough Council,http://statistics.data.gov.uk/id/local-authority/30UE,Service Management & Support,1009,NEW Customer & Digital,Supplies-Grounds Maintenance,40025,"Equipment, Furniture & Materia",5023,footprint 620c line pins,26/08/2016,115042,6.35,Revenue,Jewsons Limited,17844
Chorley Borough Council,http://statistics.data.gov.uk/id/local-authority/30UE,Development Control,1091,NEW Customer & Digital,Statutory Notices,40160,Miscellaneous Expenses,5034,Planning Public Notices to appear in the Chorley Guardian April 2016 to March 2017,12/08/2016,114709,509.40,Revenue,Johnston Publishing Ltd,20072
Chorley Borough Council,http://statistics.data.gov.uk/id/local-authority/30UE,Service Management & Support,1009,NEW Customer & Digital,External Contractor,40198,Miscellaneous Expenses,5034,Carryout tarmacking works at Clayton Green footpath along side of the Beaumont Pub as per your quote No 5504 second option,26/08/2016,114253,"2,520.00",Revenue,K Darlington and Son,21930
Chorley Borough Council,http://statistics.data.gov.uk/id/local-authority/30UE,Tourism,1039,NEW Policy & Governance,Professional Fees,40063,Services,5027,Professional Fees,24/08/2016,115011,250.00,Revenue,NAME REDACTED,76216
Chorley Borough Council,http://statistics.data.gov.uk/id/local-authority/30UE,Central Support Services,1009,NEW Early Intervention,Pest Control,20039,Cleaning and Domestic Supplies,5012,Wasps nest destroyer from Killgerm. Please use points towards cost,24/08/2016,114926,0.06,Revenue,Killgerm Chemicals Ltd,16879
Chorley Borough Council,http://statistics.data.gov.uk/id/local-authority/30UE,Central Support Services,1009,NEW Early Intervention,Pest Control,20039,Cleaning and Domestic Supplies,5012,20g Block indoor use only 0.005% brodifacoum x 4 kilos,24/08/2016,114926,31.34,Revenue,Killgerm Chemicals Ltd,16879
Chorley Borough Council,http://statistics.data.gov.uk/id/local-authority/30UE,Central Support Services,1009,NEW Early Intervention,Pest Control,20039,Cleaning and Domestic Supplies,5012,Contrac Super Blox 40 x 225g,24/08/2016,114926,461.50,Revenue,Killgerm Chemicals Ltd,16879
Chorley Borough Council,http://statistics.data.gov.uk/id/local-authority/30UE,Central Support Services,1009,NEW Early Intervention,Pest Control,20039,Cleaning and Domestic Supplies,5012,Ficam D powder contains 1% bendiocarb Please use points towards cost,24/08/2016,114926,0.52,Revenue,Killgerm Chemicals Ltd,16879
Chorley Borough Council,http://statistics.data.gov.uk/id/local-authority/30UE,Central Support Services,1009,NEW Early Intervention,Pest Control,20039,Cleaning and Domestic Supplies,5012,Ficam W BOX OF 10 X 15 G  sachets PER BOX Please use points towards cost,24/08/2016,114926,0.20,Revenue,Killgerm Chemicals Ltd,16879
Chorley Borough Council,http://statistics.data.gov.uk/id/local-authority/30UE,Unapportionable Central OHeads,1009,NEW Business Development & Growth,Planned Maintenance,20006,Repairs Maintenance & Alts,5005,Service contract N93411-001 for Yarrow Valley Visitors Centre for sewage control.,12/08/2016,114725,616.44,Revenue,Kingspan Environmental Service,67443
Chorley Borough Council,http://statistics.data.gov.uk/id/local-authority/30UE,Tourism,1039,NEW Customer & Digital,Hospitality,40201,Miscellaneous Expenses,5034,Pyromusical display for Chorley Flower Show 2016,10/08/2016,114446,"1,500.00",Revenue,Komodo Fireworks Ltd,72809
Chorley Borough Council,http://statistics.data.gov.uk/id/local-authority/30UE,Control Accounts,Control,NEW Policy & Governance,General Balances,100,Balance Sheet,Balance,Balance Sheet,12/08/2016,114434,"1,160.32",Revenue,Labour Councillors Association,17577
Chorley Borough Council,http://statistics.data.gov.uk/id/local-authority/30UE,Parking Services,1066,NEW Customer & Digital,Other Fees,40212,Miscellaneous Expenses,5034,Residents Parking Surplus 2015/2016,12/08/2016,114635,"11,496.00",Revenue,Lancashire County Council,17758
Chorley Borough Council,http://statistics.data.gov.uk/id/local-authority/30UE,Capital,Capital,NEW Business Development & Growth,Main Contractor,3007,Capital Expenditure,Capital,"Steeley Lane Area & Fazakerley Street Improvements to be designed, tendered & delivered by Lancashire County Council on",26/08/2016,114746,"108,532.00",Capital,Lancashire County Council,20027
Chorley Borough Council,http://statistics.data.gov.uk/id/local-authority/30UE,Capital,Capital,NEW Business Development & Growth,Main Contractor,3007,Capital Expenditure,Capital,Fazakerly St:Contingency (15%),26/08/2016,114746,"16,279.80",Capital,Lancashire County Council,20027
Chorley Borough Council,http://statistics.data.gov.uk/id/local-authority/30UE,Capital,Capital,NEW Business Development & Growth,Main Contractor,3007,Capital Expenditure,Capital,Fazakerly St: Design Fee (50% by LCC),26/08/2016,114746,"7,280.00",Capital,Lancashire County Council,20027
Chorley Borough Council,http://statistics.data.gov.uk/id/local-authority/30UE,Capital,Capital,NEW Business Development & Growth,Main Contractor,3007,Capital Expenditure,Capital,Fazakerly St: Supervision & Contract administration (50% by LCC),26/08/2016,114746,"1,960.00",Capital,Lancashire County Council,20027
Chorley Borough Council,http://statistics.data.gov.uk/id/local-authority/30UE,Economic Development,1096,NEW Business Development & Growth,Miscellaneous Expenses,40200,Miscellaneous Expenses,5034,Theatre Walk / Bus Station Crossing / East Way & Steely Lane: Tender sum,26/08/2016,114746,"85,343.31",Revenue,Lancashire County Council,20027
Chorley Borough Council,http://statistics.data.gov.uk/id/local-authority/30UE,Economic Development,1096,NEW Business Development & Growth,Miscellaneous Expenses,40200,Miscellaneous Expenses,5034,Theatre Walk / Bus Station Crossing / East Way & Steely Lane: Contingencies (15%),26/08/2016,114746,"12,801.50",Revenue,Lancashire County Council,20027
Chorley Borough Council,http://statistics.data.gov.uk/id/local-authority/30UE,Economic Development,1096,NEW Business Development & Growth,Miscellaneous Expenses,40200,Miscellaneous Expenses,5034,Theatre Walk / Bus Station Crossing / East Way & Steely Lane: Design Fees (50% by LCC),26/08/2016,114746,"5,720.00",Revenue,Lancashire County Council,20027
Chorley Borough Council,http://statistics.data.gov.uk/id/local-authority/30UE,Economic Development,1096,NEW Business Development & Growth,Miscellaneous Expenses,40200,Miscellaneous Expenses,5034,Theatre Walk / Bus Station Crossing / East Way & Steely Lane: Supervision & contract administration (50% by LCC),26/08/2016,114746,"1,540.00",Revenue,Lancashire County Council,20027
Chorley Borough Council,http://statistics.data.gov.uk/id/local-authority/30UE,Precepts and Collection Fund,Precepts,NEW Policy & Governance,LCC Precept,2009,Precepts & Collection Fund,Precept,council tax precept,15/08/2016,114836,"4,181,662.00",Revenue,Lancashire County Council,18386
Chorley Borough Council,http://statistics.data.gov.uk/id/local-authority/30UE,Collection Fund Revenue Accoun,,NEW Policy & Governance,NNDR County Share,2036,Precepts & Collection Fund,Precept,business rates precept,15/08/2016,114836,"262,993.00",Revenue,Lancashire County Council,18386
Chorley Borough Council,http://statistics.data.gov.uk/id/local-authority/30UE,Corporate Management,1008,NEW Policy & Governance,Other Contributions,40145,Grants and Subscriptions,5031,"Subsidy for the provision of bus services 6/6a, and 109a/24a during quarter one",18/08/2016,114927,"20,460.00",Revenue,Lancashire County Council,17758
Chorley Borough Council,http://statistics.data.gov.uk/id/local-authority/30UE,Capital,Capital,NEW Early Intervention,Grants,3002,Capital Expenditure,Capital,ADDRESS REDACTED,24/08/2016,114991,"6,325.00",Capital,Lancashire County Council,17758
Chorley Borough Council,http://statistics.data.gov.uk/id/local-authority/30UE,Capital,Capital,NEW Early Intervention,Grants,3002,Capital Expenditure,Capital,ADDRESS REDACTED,24/08/2016,114992,"8,005.00",Capital,Lancashire County Council,17758
Chorley Borough Council,http://statistics.data.gov.uk/id/local-authority/30UE,Capital,Capital,NEW Early Intervention,Grants,3002,Capital Expenditure,Capital,ADDRESS REDACTED,24/08/2016,114993,357.49,Capital,Lancashire County Council,17758
Chorley Borough Council,http://statistics.data.gov.uk/id/local-authority/30UE,Capital,Capital,NEW Early Intervention,Grants,3002,Capital Expenditure,Capital,ADDRESS REDACTED,24/08/2016,114994,"6,097.40",Capital,Lancashire County Council,17758
Chorley Borough Council,http://statistics.data.gov.uk/id/local-authority/30UE,Capital,Capital,NEW Early Intervention,Grants,3002,Capital Expenditure,Capital,ADDRESS REDACTED,24/08/2016,114995,"4,506.00",Capital,Lancashire County Council,17758
Chorley Borough Council,http://statistics.data.gov.uk/id/local-authority/30UE,Capital,Capital,NEW Early Intervention,Grants,3002,Capital Expenditure,Capital,ADDRESS REDACTED,24/08/2016,114996,752.00,Capital,Lancashire County Council,17758
Chorley Borough Council,http://statistics.data.gov.uk/id/local-authority/30UE,Capital,Capital,NEW Early Intervention,Grants,3002,Capital Expenditure,Capital,ADDRESS REDACTED,24/08/2016,115030,"4,275.00",Capital,Lancashire County Council,17758
Chorley Borough Council,http://statistics.data.gov.uk/id/local-authority/30UE,Corporate Management,1008,NEW Policy & Governance,Other Fees,40212,Miscellaneous Expenses,5034,Subsidy for the delivery of meals on wheels up to 7 August 2016,17/08/2016,114883,965.43,Revenue,Lancashire Fayre,62967
Chorley Borough Council,http://statistics.data.gov.uk/id/local-authority/30UE,Unapportionable Central OHeads,1009,NEW Policy & Governance,Corp Training Organisational Development,17006,Indirect Employee Expenses,5002,Bespoke Resilience/WAP Seminar,26/08/2016,113250,860.00,Revenue,Lancashire Mind Ltd,18578
Chorley Borough Council,http://statistics.data.gov.uk/id/local-authority/30UE,Unapportionable Central OHeads,1009,NEW Policy & Governance,Pensions Deficit Recovery Contributions,12003,Direct Employee Expenses,5001,pension deficit,15/08/2016,114878,"79,633.33",Revenue,Lancashire Pensions Services,16696
Chorley Borough Council,http://statistics.data.gov.uk/id/local-authority/30UE,Corporate Management,1008,NEW Customer & Digital,Clinical Waste Collection,50007,Private Contractors,5042,"Disposal of clinical waste from Chorley household. April 2016 to March 2017. Yellow bag collections, approx. 550 per month.",05/08/2016,114319,"1,406.57",Revenue,Lancashire Teaching Hospitals NHS FT,19003
Chorley Borough Council,http://statistics.data.gov.uk/id/local-authority/30UE,Corporate Management,1008,NEW Customer & Digital,Clinical Waste Collection,50007,Private Contractors,5042,"Disposal of clinical waste from Chorley household. April 2016 to March 2017. Yellow bag collections, approx. 550 per month.",05/08/2016,114399,"1,097.25",Revenue,Lancashire Teaching Hospitals NHS FT,19003
Chorley Borough Council,http://statistics.data.gov.uk/id/local-authority/30UE,Unapportionable Central OHeads,1009,NEW Policy & Governance,Service Fees,40056,Services,5027,Occupational Health Fees for June 2016,12/08/2016,114637,"1,019.00",Revenue,Lancashire Teaching Hospitals NHS FT,19003
Chorley Borough Council,http://statistics.data.gov.uk/id/local-authority/30UE,Precepts and Collection Fund,Precepts,NEW Policy & Governance,LCFA Precept,2011,Precepts & Collection Fund,Precept,council tax precept,15/08/2016,114837,"233,211.00",Revenue,Lancs Combined Fire Authority,17768
Chorley Borough Council,http://statistics.data.gov.uk/id/local-authority/30UE,Collection Fund Revenue Accoun,,NEW Policy & Governance,NNDR Fire Share,2037,Precepts & Collection Fund,Precept,business rates precept,15/08/2016,114837,"29,222.00",Revenue,Lancs Combined Fire Authority,17768
Chorley Borough Council,http://statistics.data.gov.uk/id/local-authority/30UE,Unapportionable Central OHeads,1009,NEW Policy & Governance,HR Approved Training Expenses,17001,Indirect Employee Expenses,5002,Purchase of E-learning System,31/08/2016,114889,"5,000.00",Revenue,Learning Pool Limited,76161
Chorley Borough Council,http://statistics.data.gov.uk/id/local-authority/30UE,Development Control,1091,NEW Policy & Governance,Car Leasing Payment,14100,Direct Employee Expenses,5001,QUOTE - 587164 via GPS Fleet Portal Vehicle - Nissan Qashqui 1.5 dCI Acenta 110 [Smart Vision/Comfort/Tech] Body Type - ,12/08/2016,114495,"3,085.68",Revenue,LeasePlan UK Ltd T/A Automotive Leasing,65197
Chorley Borough Council,http://statistics.data.gov.uk/id/local-authority/30UE,Unapportionable Central OHeads,1009,NEW Customer & Digital,Publications,40054,"Printing, Stationery & General",5026,ryde on rating,10/08/2016,114655,365.45,Revenue,Lexis Nexis UK,16688
Chorley Borough Council,http://statistics.data.gov.uk/id/local-authority/30UE,Unapportionable Central OHeads,1009,NEW Customer & Digital,Publications,40054,"Printing, Stationery & General",5026,Ryde on Rating,10/08/2016,114656,324.45,Revenue,Lexis Nexis UK,16688
Chorley Borough Council,http://statistics.data.gov.uk/id/local-authority/30UE,Unapportionable Central OHeads,1009,NEW Policy & Governance,General Subscriptions,40146,Grants and Subscriptions,5031,Stones Justice,10/08/2016,114657,354.05,Revenue,Lexis Nexis UK,16688
Chorley Borough Council,http://statistics.data.gov.uk/id/local-authority/30UE,Unapportionable Central OHeads,1009,NEW Policy & Governance,General Subscriptions,40146,Grants and Subscriptions,5031,general subscription,10/08/2016,114657,375.95,Revenue,Lexis Nexis UK,16688
Chorley Borough Council,http://statistics.data.gov.uk/id/local-authority/30UE,Unapportionable Central OHeads,1009,NEW Policy & Governance,General Subscriptions,40146,Grants and Subscriptions,5031,general subscription,10/08/2016,114657,5.45,Revenue,Lexis Nexis UK,16688
Chorley Borough Council,http://statistics.data.gov.uk/id/local-authority/30UE,Unapportionable Central OHeads,1009,NEW Customer & Digital,Agency Staff,13000,Direct Employee Expenses,5001,Empty homes review July 16,10/08/2016,114649,"1,606.50",Revenue,Liberata (Capacity Grid),67989
Chorley Borough Council,http://statistics.data.gov.uk/id/local-authority/30UE,Unapportionable Central OHeads,1009,NEW Customer & Digital,Professional Fees,14011,Direct Employee Expenses,5001,Capacity Grid Empty Homes Review 2016,10/08/2016,114677,"2,448.00",Revenue,Liberata (Capacity Grid),67989
Chorley Borough Council,http://statistics.data.gov.uk/id/local-authority/30UE,Unapportionable Central OHeads,1009,NEW Customer & Digital,Professional Fees,14011,Direct Employee Expenses,5001,Capacity Grid Business Rates Review - VOA Returns April to July 2016,18/08/2016,114761,"4,500.00",Revenue,Liberata (Capacity Grid),67989
Chorley Borough Council,http://statistics.data.gov.uk/id/local-authority/30UE,Capital,Capital,NEW Customer & Digital,Main Contractor,3007,Capital Expenditure,Capital,5% retention payable after 12 months completion,26/08/2016,113934,"5,133.97",Capital,Link Contracting Services Ltd,71226
Chorley Borough Council,http://statistics.data.gov.uk/id/local-authority/30UE,Corporate Management,1008,NEW Customer & Digital,Other Contributions,40145,Grants and Subscriptions,5031,ADDRESS REDACTED,17/08/2016,114824,"4,706.00",Revenue,NAME REDACTED,76197
Chorley Borough Council,http://statistics.data.gov.uk/id/local-authority/30UE,Capital,Capital,NEW Customer & Digital,Main Contractor,3007,Capital Expenditure,Capital,To supply and install:Fairy carousel Goblins track balance beam Clover leaf stepping stone Trolls balance beam Pine cone,24/08/2016,114959,"7,400.00",Capital,Ludus Leisure Limited,71508
Chorley Borough Council,http://statistics.data.gov.uk/id/local-authority/30UE,Capital,Capital,NEW Customer & Digital,Main Contractor,3007,Capital Expenditure,Capital,To supply and install Motoric track activity tower Ulnes Walton play area,24/08/2016,114960,"9,600.00",Capital,Ludus Leisure Limited,71508
Chorley Borough Council,http://statistics.data.gov.uk/id/local-authority/30UE,Business Support,1095,NEW Business Development & Growth,Grants To Other Organisations,40127,Grants and Subscriptions,5031,sib grant,17/08/2016,114427,250.00,Revenue,NAME REDACTED,76172
Chorley Borough Council,http://statistics.data.gov.uk/id/local-authority/30UE,Elections,1012,NEW Chief Executive,Stationery,40050,"Printing, Stationery & General",5026,LYRECO BUDGET PROJECT FILE A4 PP BLACK,10/08/2016,114675,9.00,Revenue,Lyreco UK Ltd,17623
Chorley Borough Council,http://statistics.data.gov.uk/id/local-authority/30UE,Elections,1012,NEW Chief Executive,Stationery,40050,"Printing, Stationery & General",5026,Rubber bands,10/08/2016,114675,80.90,Revenue,Lyreco UK Ltd,17623
Chorley Borough Council,http://statistics.data.gov.uk/id/local-authority/30UE,Elections,1012,NEW Chief Executive,Stationery,40050,"Printing, Stationery & General",5026,Rubber Bands 1.2mm x 75mm,10/08/2016,114675,80.90,Revenue,Lyreco UK Ltd,17623
Chorley Borough Council,http://statistics.data.gov.uk/id/local-authority/30UE,Elections,1012,NEW Chief Executive,Stationery,40050,"Printing, Stationery & General",5026,Foolscap clipboards,10/08/2016,114675,6.25,Revenue,Lyreco UK Ltd,17623
Chorley Borough Council,http://statistics.data.gov.uk/id/local-authority/30UE,Elections,1012,NEW Chief Executive,Computer Consumables,40099,Communication and Computing,5028,Lexmark printer cartridge for T642 High Yield Printer,10/08/2016,114675,110.07,Revenue,Lyreco UK Ltd,17623
Chorley Borough Council,http://statistics.data.gov.uk/id/local-authority/30UE,Unapportionable Central OHeads,1009,NEW Chief Executive,Stationery,40050,"Printing, Stationery & General",5026,Calculators,10/08/2016,114675,7.86,Revenue,Lyreco UK Ltd,17623
Chorley Borough Council,http://statistics.data.gov.uk/id/local-authority/30UE,Unapportionable Central OHeads,1009,NEW Chief Executive,Stationery,40050,"Printing, Stationery & General",5026,Black A4 21 Ring Plastic Combs Box 100,10/08/2016,114675,18.90,Revenue,Lyreco UK Ltd,17623
Chorley Borough Council,http://statistics.data.gov.uk/id/local-authority/30UE,Unapportionable Central OHeads,1009,NEW Chief Executive,Stationery,40050,"Printing, Stationery & General",5026,Black A4 21 ring plastic combs,10/08/2016,114675,18.00,Revenue,Lyreco UK Ltd,17623
Chorley Borough Council,http://statistics.data.gov.uk/id/local-authority/30UE,Unapportionable Central OHeads,1009,NEW Chief Executive,Stationery,40050,"Printing, Stationery & General",5026,LYRECO FINELINER BLACK PENS 0.3MM LINE WIDTH - BOX OF 12,10/08/2016,114675,0.72,Revenue,Lyreco UK Ltd,17623
Chorley Borough Council,http://statistics.data.gov.uk/id/local-authority/30UE,Unapportionable Central OHeads,1009,NEW Chief Executive,Stationery,40050,"Printing, Stationery & General",5026,Elba Spring Pocket Files - Green,10/08/2016,114675,6.56,Revenue,Lyreco UK Ltd,17623
Chorley Borough Council,http://statistics.data.gov.uk/id/local-authority/30UE,Capital,Capital,NEW Business Development & Growth,Main Contractor,3007,Capital Expenditure,Capital,Tree works around Astley Park Tennis Courts as per quotation,12/08/2016,114629,"2,800.00",Capital,NAME REDACTED,62044
Chorley Borough Council,http://statistics.data.gov.uk/id/local-authority/30UE,Service Management & Support,1009,NEW Customer & Digital,Vehicle Maintenance,30045,Direct Transport Costs,5016,Carryout sand blasting and painting of roll on roll off body as per quote,17/08/2016,114573,580.00,Revenue,M W Rainford,17057
Chorley Borough Council,http://statistics.data.gov.uk/id/local-authority/30UE,Service Management & Support,1009,NEW Customer & Digital,Vehicle Maintenance,30045,Direct Transport Costs,5016,Sandblasting and painting of 2 x role on role off skips at price quoted,26/08/2016,114586,"1,160.00",Revenue,M W Rainford,17057
Chorley Borough Council,http://statistics.data.gov.uk/id/local-authority/30UE,Business Support,1095,NEW Business Development & Growth,Grants To Other Organisations,40127,Grants and Subscriptions,5031,grant,12/08/2016,114150,896.25,Revenue,NAME REDACTED,76132
Chorley Borough Council,http://statistics.data.gov.uk/id/local-authority/30UE,Corporate Management,1008,NEW Customer & Digital,Other Contributions,40145,Grants and Subscriptions,5031,ADDRESS REDACTED,26/08/2016,114981,"3,205.20",Revenue,NAME REDACTED,73922
Chorley Borough Council,http://statistics.data.gov.uk/id/local-authority/30UE,Elections,1012,NEW Policy & Governance,Stationery,40050,"Printing, Stationery & General",5026,tactile devices,17/08/2016,114890,360.00,Revenue,MANCHESTER CITY COUNCIL,18212
Chorley Borough Council,http://statistics.data.gov.uk/id/local-authority/30UE,Tourism,1039,NEW Policy & Governance,Professional Fees,40063,Services,5027,Professional Fees,24/08/2016,115012,250.00,Revenue,Marsh Road Nursery,71513
Chorley Borough Council,http://statistics.data.gov.uk/id/local-authority/30UE,Unapportionable Central OHeads,1009,NEW Policy & Governance,Miscellaneous Expenses,40200,Miscellaneous Expenses,5034,Photography at the Chorley Flower Show including setting up and Gala Dinner on Friday and pictures of the event on Saturday,26/08/2016,115118,300.00,Revenue,Martin Birchall Photography,22503
Chorley Borough Council,http://statistics.data.gov.uk/id/local-authority/30UE,Unapportionable Central OHeads,1009,NEW Policy & Governance,Agency Staff,13000,Direct Employee Expenses,5001,Agency Fees,10/08/2016,114650,728.99,Revenue,Matrix SCM Ltd,22128
Chorley Borough Council,http://statistics.data.gov.uk/id/local-authority/30UE,Unapportionable Central OHeads,1009,NEW Policy & Governance,Agency Staff,13000,Direct Employee Expenses,5001,Agency Fees,12/08/2016,114773,"1,335.45",Revenue,Matrix SCM Ltd,22128
Chorley Borough Council,http://statistics.data.gov.uk/id/local-authority/30UE,Unapportionable Central OHeads,1009,NEW Policy & Governance,Agency Staff,13000,Direct Employee Expenses,5001,Agency Fees,12/08/2016,114773,729.00,Revenue,Matrix SCM Ltd,22128
Chorley Borough Council,http://statistics.data.gov.uk/id/local-authority/30UE,Corporate Management,1008,NEW Policy & Governance,Agency Staff,13000,Direct Employee Expenses,5001,Agency Fees,24/08/2016,114950,"1,440.50",Revenue,Matrix SCM Ltd,22128
Chorley Borough Council,http://statistics.data.gov.uk/id/local-authority/30UE,Unapportionable Central OHeads,1009,NEW Policy & Governance,Agency Staff,13000,Direct Employee Expenses,5001,Agency Fees,24/08/2016,114950,445.15,Revenue,Matrix SCM Ltd,22128
Chorley Borough Council,http://statistics.data.gov.uk/id/local-authority/30UE,Unapportionable Central OHeads,1009,NEW Policy & Governance,Agency Staff,13000,Direct Employee Expenses,5001,Agency Fees,24/08/2016,114950,729.00,Revenue,Matrix SCM Ltd,22128
Chorley Borough Council,http://statistics.data.gov.uk/id/local-authority/30UE,Corporate Management,1008,NEW Policy & Governance,Agency Staff,13000,Direct Employee Expenses,5001,Agency Fees,31/08/2016,115072,896.82,Revenue,Matrix SCM Ltd,22128
Chorley Borough Council,http://statistics.data.gov.uk/id/local-authority/30UE,Unapportionable Central OHeads,1009,NEW Policy & Governance,Agency Staff,13000,Direct Employee Expenses,5001,Agency Fees,31/08/2016,115072,445.15,Revenue,Matrix SCM Ltd,22128
Chorley Borough Council,http://statistics.data.gov.uk/id/local-authority/30UE,Unapportionable Central OHeads,1009,NEW Policy & Governance,Agency Staff,13000,Direct Employee Expenses,5001,Agency Fees,31/08/2016,115072,728.99,Revenue,Matrix SCM Ltd,22128
Chorley Borough Council,http://statistics.data.gov.uk/id/local-authority/30UE,Capital,Capital,NEW Customer & Digital,Equipment,3014,Capital Expenditure,Capital,560  x Green 240ltr wheeled bins to Chorley spec @ 15.75 per unit.,26/08/2016,114928,"8,820.00",Capital,MGB Plastics Ltd,18624
Chorley Borough Council,http://statistics.data.gov.uk/id/local-authority/30UE,Business Support,1095,NEW Business Development & Growth,Grants To Other Organisations,40127,Grants and Subscriptions,5031,grant,12/08/2016,114203,"5,000.00",Revenue,NAME REDACTED,76075
Chorley Borough Council,http://statistics.data.gov.uk/id/local-authority/30UE,Business Support,1095,NEW Business Development & Growth,Grants To Other Organisations,40127,Grants and Subscriptions,5031,grant,12/08/2016,114203,"2,721.72",Revenue,NAME REDACTED,76075
Chorley Borough Council,http://statistics.data.gov.uk/id/local-authority/30UE,Corporate Management,1008,NEW Customer & Digital,Other Contributions,40145,Grants and Subscriptions,5031,ADDRESS REDACTED,17/08/2016,114825,"2,230.00",Revenue,NAME REDACTED,73984
Chorley Borough Council,http://statistics.data.gov.uk/id/local-authority/30UE,Service Management & Support,1009,NEW Customer & Digital,Supplies-Grounds Maintenance,40025,"Equipment, Furniture & Materia",5023,"Please supply street name plates, to chorley council specification, as per the quote received from NAME REDACTED dated 0914",17/08/2016,114884,258.46,Revenue,Midland Signs (Leicester) Ltd,16606
Chorley Borough Council,http://statistics.data.gov.uk/id/local-authority/30UE,Capital,Capital,NEW Early Intervention,Grants,3002,Capital Expenditure,Capital,ADDRESS REDACTED,24/08/2016,113861,"20,480.43",Capital,Mint Northwest Ltd,65607
Chorley Borough Council,http://statistics.data.gov.uk/id/local-authority/30UE,Capital,Capital,NEW Early Intervention,Grants,3002,Capital Expenditure,Capital,ADDRESS REDACTED,24/08/2016,114978,"4,451.26",Capital,Mint Northwest Ltd,65607
Chorley Borough Council,http://statistics.data.gov.uk/id/local-authority/30UE,Capital,Capital,NEW Early Intervention,Grants,3002,Capital Expenditure,Capital,ADDRESS REDACTED,24/08/2016,114979,"3,477.92",Capital,Mint Northwest Ltd,65607
Chorley Borough Council,http://statistics.data.gov.uk/id/local-authority/30UE,Capital,Capital,NEW Early Intervention,Grants,3002,Capital Expenditure,Capital,ADDRESS REDACTED,24/08/2016,114980,"3,656.11",Capital,Mint Northwest Ltd,65607
Chorley Borough Council,http://statistics.data.gov.uk/id/local-authority/30UE,Private Sector HSG Renewal,1073,NEW Early Intervention,External Contractor,40198,Miscellaneous Expenses,5034,ADDRESS REDACTED,12/08/2016,114533,250.00,Revenue,Mobility Care Services,70841
Chorley Borough Council,http://statistics.data.gov.uk/id/local-authority/30UE,Private Sector HSG Renewal,1073,NEW Early Intervention,External Contractor,40198,Miscellaneous Expenses,5034,ADDRESS REDACTED,12/08/2016,114556,460.00,Revenue,Mobility Care Services,70841
Chorley Borough Council,http://statistics.data.gov.uk/id/local-authority/30UE,Private Sector HSG Renewal,1073,NEW Early Intervention,External Contractor,40198,Miscellaneous Expenses,5034,ADDRESS REDACTED,12/08/2016,114558,320.00,Revenue,Mobility Care Services,70841
Chorley Borough Council,http://statistics.data.gov.uk/id/local-authority/30UE,Private Sector HSG Renewal,1073,NEW Early Intervention,External Contractor,40198,Miscellaneous Expenses,5034,NAME REDACTED,12/08/2016,114563,440.00,Revenue,Mobility Care Services,70841
Chorley Borough Council,http://statistics.data.gov.uk/id/local-authority/30UE,Private Sector HSG Renewal,1073,NEW Early Intervention,External Contractor,40198,Miscellaneous Expenses,5034,ADDRESS REDACTED,12/08/2016,114564,480.00,Revenue,Mobility Care Services,70841
Chorley Borough Council,http://statistics.data.gov.uk/id/local-authority/30UE,Private Sector HSG Renewal,1073,NEW Early Intervention,External Contractor,40198,Miscellaneous Expenses,5034,ADDRESS REDACTED,12/08/2016,114570,651.00,Revenue,Mobility Care Services,70841
Chorley Borough Council,http://statistics.data.gov.uk/id/local-authority/30UE,Service Management & Support,1009,NEW Business Development & Growth,External Contractor,40198,Miscellaneous Expenses,5034,"i) Sup E�s duties � Site visit and Statement (June 2016) NAME REDACTED 7.5 hours @ 76.00/h   = 570.00 Travel 72 miles",10/08/2016,114224,836.40,Revenue,Mott Macdonald Ltd,16200
Chorley Borough Council,http://statistics.data.gov.uk/id/local-authority/30UE,Control Accounts,Control,NEW Early Intervention,Manual Control Account,1,Balance Sheet,Balance,Balance Sheet,12/08/2016,114707,360.00,Revenue,NAME REDACTED,76193
Chorley Borough Council,http://statistics.data.gov.uk/id/local-authority/30UE,Business Support,1095,NEW Business Development & Growth,Grants To Other Organisations,40127,Grants and Subscriptions,5031,grants,26/08/2016,114977,"2,586.24",Revenue,NAME REDACTED,74649
Chorley Borough Council,http://statistics.data.gov.uk/id/local-authority/30UE,Business Support,1095,NEW Business Development & Growth,Grants To Other Organisations,40127,Grants and Subscriptions,5031,grants,26/08/2016,114977,"3,000.00",Revenue,NAME REDACTED,74649
Chorley Borough Council,http://statistics.data.gov.uk/id/local-authority/30UE,Private Sector HSG Renewal,1073,NEW Early Intervention,Miscellaneous Expenses,40200,Miscellaneous Expenses,5034,Provision of Energy Switching Support Service in July 2016,03/08/2016,114420,300.00,Revenue,NAME REDACTED,65606
Chorley Borough Council,http://statistics.data.gov.uk/id/local-authority/30UE,Business Support,1095,NEW Business Development & Growth,Grants To Other Organisations,40127,Grants and Subscriptions,5031,grants,31/08/2016,115070,"3,000.00",Revenue,NAME REDACTED,76222
Chorley Borough Council,http://statistics.data.gov.uk/id/local-authority/30UE,Business Support,1095,NEW Business Development & Growth,Grants To Other Organisations,40127,Grants and Subscriptions,5031,grants,31/08/2016,115070,"1,107.75",Revenue,NAME REDACTED,76222
Chorley Borough Council,http://statistics.data.gov.uk/id/local-authority/30UE,Business Support,1095,NEW Business Development & Growth,Grants To Other Organisations,40127,Grants and Subscriptions,5031,shop grant,12/08/2016,114545,"1,357.80",Revenue,NAME REDACTED,62736
Chorley Borough Council,http://statistics.data.gov.uk/id/local-authority/30UE,Tourism,1039,NEW Policy & Governance,Professional Fees,40063,Services,5027,Children`s gardening activities and talks at the Chorley Flower Show,03/08/2016,114118,500.00,Revenue,NAME REDACTED,75516
Chorley Borough Council,http://statistics.data.gov.uk/id/local-authority/30UE,Tourism,1039,NEW Policy & Governance,Professional Fees,40063,Services,5027,Decoration of the Ferris Wheel with flowers for the Chorley Flower Show,12/08/2016,114534,"2,350.00",Revenue,NAME REDACTED,76134
Chorley Borough Council,http://statistics.data.gov.uk/id/local-authority/30UE,Corporate Management,1008,NEW Policy & Governance,Other Fees,40212,Miscellaneous Expenses,5034, 8PP A4 Meals on Wheels Menu Brochure x 1000,03/08/2016,114369,316.00,Revenue,N B Colour Print Ltd,17917
Chorley Borough Council,http://statistics.data.gov.uk/id/local-authority/30UE,Tourism,1039,NEW Policy & Governance,Promotional Expenses,40159,Miscellaneous Expenses,5034,7000 x A5 copies of the Chorley Flower Show programme,05/08/2016,114457,"1,098.00",Revenue,N B Colour Print Ltd,17917
Chorley Borough Council,http://statistics.data.gov.uk/id/local-authority/30UE,Service Management & Support,1009,NEW Customer & Digital,Refuse Collection,20037,Cleaning and Domestic Supplies,5012,Exchange of 35yrd street cleaning and flytip waste as per your price Please use this order from 01/04/2016 through to 31/03/2017,26/08/2016,114678,"1,935.36",Revenue,Neales Waste Management,17583
Chorley Borough Council,http://statistics.data.gov.uk/id/local-authority/30UE,Service Management & Support,1009,NEW Customer & Digital,Refuse Collection,20037,Cleaning and Domestic Supplies,5012,Charges for green waste removal from Bengal St depot as per your quote.Please use this order No from 01/04/2016 through to ,26/08/2016,114678,60.84,Revenue,Neales Waste Management,17583
Chorley Borough Council,http://statistics.data.gov.uk/id/local-authority/30UE,Unapportionable Central OHeads,1009,NEW Customer & Digital,Refuse Collection,20037,Cleaning and Domestic Supplies,5012,7. Provision of trade waste collections for the Town Hall. 2016 / 2017 (6 x 1100 litre bins per week),17/08/2016,114680,252.20,Revenue,Neales Waste Management,17583
Chorley Borough Council,http://statistics.data.gov.uk/id/local-authority/30UE,Service Management & Support,1009,NEW Customer & Digital,Refuse Collection,20037,Cleaning and Domestic Supplies,5012,Exchange of 35yrd street cleaning and flytip waste as per your price Please use this order from 01/04/2016 through to 31/03/2017,24/08/2016,114684,786.24,Revenue,Neales Waste Management,17583
Chorley Borough Council,http://statistics.data.gov.uk/id/local-authority/30UE,Unapportionable Central OHeads,1009,NEW Customer & Digital,Refuse Collection,20037,Cleaning and Domestic Supplies,5012,"8. Provision of trade waste collections for the Civic Offices, Union Street, 2016 / 2017 (6 x 1100 litre bins per week)",17/08/2016,114689,252.20,Revenue,Neales Waste Management,17583
Chorley Borough Council,http://statistics.data.gov.uk/id/local-authority/30UE,Business Support,1095,NEW Business Development & Growth,Refuse Collection,20037,Cleaning and Domestic Supplies,5012,Market Walk YARD 1 - General Waste compacted - 35 Cubic Yard Roll On / Roll Off Skip from Compactor,24/08/2016,114691,362.88,Revenue,Neales Waste Management,17583
Chorley Borough Council,http://statistics.data.gov.uk/id/local-authority/30UE,Business Support,1095,NEW Business Development & Growth,Refuse Collection,20037,Cleaning and Domestic Supplies,5012,Market Walk YARD 1 - General Waste Compacted Disposal Costs per tonne (variable depended on weight collected),24/08/2016,114691,"2,351.98",Revenue,Neales Waste Management,17583
Chorley Borough Council,http://statistics.data.gov.uk/id/local-authority/30UE,Business Support,1095,NEW Business Development & Growth,Refuse Collection,20037,Cleaning and Domestic Supplies,5012,Market Walk YARD 2 - cardboard and plastic film - 35 cubic yard Ro Ro skip,24/08/2016,114692,50.00,Revenue,Neales Waste Management,17583
Chorley Borough Council,http://statistics.data.gov.uk/id/local-authority/30UE,Business Support,1095,NEW Business Development & Growth,Refuse Collection,20037,Cleaning and Domestic Supplies,5012,Market Walk YARD 2 - General Waste - 8 cubic yard FEL skip,24/08/2016,114692,220.00,Revenue,Neales Waste Management,17583
Chorley Borough Council,http://statistics.data.gov.uk/id/local-authority/30UE,Business Support,1095,NEW Business Development & Growth,Refuse Collection,20037,Cleaning and Domestic Supplies,5012,Market Walk YARD 3 - cardboard and plastic film - 35 cubic yard Ro Ro skip,12/08/2016,114697,250.00,Revenue,Neales Waste Management,17583
Chorley Borough Council,http://statistics.data.gov.uk/id/local-authority/30UE,Business Support,1095,NEW Business Development & Growth,Refuse Collection,20037,Cleaning and Domestic Supplies,5012,Market Walk YARD 3 - general waste - x2  8 cubic yard FEL skip Lift Costs,12/08/2016,114697,440.00,Revenue,Neales Waste Management,17583
Chorley Borough Council,http://statistics.data.gov.uk/id/local-authority/30UE,Corporate Management,1008,NEW Customer & Digital,"Hackney Badges, Plates Etc.",40023,"Equipment, Furniture & Materia",5023,Private Hire door signs to include tamper evident hologram and cover,17/08/2016,114866,269.46,Revenue,NewAuto Ltd t/a MOGO UK,17187
Chorley Borough Council,http://statistics.data.gov.uk/id/local-authority/30UE,Central Support Services,1009,NEW Early Intervention,Miscellaneous Expenses,40200,Miscellaneous Expenses,5034,"Make and supply 2 x storytelling chairs, 10 benches, signage for woodland classroom at Primrose Hill Primary School, Euxton",12/08/2016,114589,"1,150.00",Revenue,Newgate Nurseries,73457
Chorley Borough Council,http://statistics.data.gov.uk/id/local-authority/30UE,Service Management & Support,1009,NEW Customer & Digital,Vehicle Maintenance,30045,Direct Transport Costs,5016,Supply 10 x blue polly wire brushes for Swingo as on invoice number 14837,17/08/2016,114465,347.25,Revenue,Northern Municipal Spares Ltd,17752
Chorley Borough Council,http://statistics.data.gov.uk/id/local-authority/30UE,Service Management & Support,1009,NEW Customer & Digital,Vehicle Maintenance,30045,Direct Transport Costs,5016,Supply 6 polly brushes for Swingo as on invoice number 14837,17/08/2016,114465,133.11,Revenue,Northern Municipal Spares Ltd,17752
Chorley Borough Council,http://statistics.data.gov.uk/id/local-authority/30UE,Tourism,1039,NEW Policy & Governance,Hospitality,40201,Miscellaneous Expenses,5034,Performance at Astley Hall for the Chorley Flower Show gala dinner,17/08/2016,114807,595.00,Revenue,Northern String Quartet,70947
Chorley Borough Council,http://statistics.data.gov.uk/id/local-authority/30UE,Service Management & Support,1009,NEW Customer & Digital,Hire Of Transport,30028,Contrct Hire & Operating Lease,5018,Hire of Ford Transit 3.5 tonne crewcab tipper reg NL12OFG for 25 week period as per quote,24/08/2016,114467,394.29,Revenue,Northgate Vehicle Hire (NW) Ltd,17360
Chorley Borough Council,http://statistics.data.gov.uk/id/local-authority/30UE,Service Management & Support,1009,NEW Customer & Digital,Hire Of Transport,30028,Contrct Hire & Operating Lease,5018,Hire of Ford Transit 3.5 tonne crewcab tipper reg NL12ONR for 25 week period as per quote,24/08/2016,114467,492.86,Revenue,Northgate Vehicle Hire (NW) Ltd,17360
Chorley Borough Council,http://statistics.data.gov.uk/id/local-authority/30UE,Service Management & Support,1009,NEW Customer & Digital,Hire Of Transport,30028,Contrct Hire & Operating Lease,5018,Hire of Ford Transit 3.5 tonne crewcab tipper reg NK13YPT for 25 week period as per quote,24/08/2016,114467,492.86,Revenue,Northgate Vehicle Hire (NW) Ltd,17360
Chorley Borough Council,http://statistics.data.gov.uk/id/local-authority/30UE,Service Management & Support,1009,NEW Customer & Digital,Hire Of Transport,30028,Contrct Hire & Operating Lease,5018,Hire of Ford Transit 3.5 tonne tipper reg FE65BRF for 25 week period as per quote,24/08/2016,114467,394.29,Revenue,Northgate Vehicle Hire (NW) Ltd,17360
Chorley Borough Council,http://statistics.data.gov.uk/id/local-authority/30UE,Service Management & Support,1009,NEW Customer & Digital,Hire Of Transport,30028,Contrct Hire & Operating Lease,5018,Hire of Ford Transit 3.5 tonne tipper reg WN65MWW for 25 week period as per quote,24/08/2016,114467,492.86,Revenue,Northgate Vehicle Hire (NW) Ltd,17360
Chorley Borough Council,http://statistics.data.gov.uk/id/local-authority/30UE,Service Management & Support,1009,NEW Customer & Digital,Hire Of Transport,30028,Contrct Hire & Operating Lease,5018,Hire of Ford Transit 3.5 tonne tipper reg WN65MHO for 25 week period as per quote,24/08/2016,114467,394.29,Revenue,Northgate Vehicle Hire (NW) Ltd,17360
Chorley Borough Council,http://statistics.data.gov.uk/id/local-authority/30UE,Service Management & Support,1009,NEW Customer & Digital,Hire Of Transport,30028,Contrct Hire & Operating Lease,5018,Hire of Ford Transit 3.5 tonne tipper reg WN65UBO for 25 week period as per quote,24/08/2016,114467,394.29,Revenue,Northgate Vehicle Hire (NW) Ltd,17360
Chorley Borough Council,http://statistics.data.gov.uk/id/local-authority/30UE,Service Management & Support,1009,NEW Customer & Digital,Hire Of Transport,30028,Contrct Hire & Operating Lease,5018,Hire of Ford Transit 3.5 tonne tipper reg WU65KZZfor 25 week period as per quote,24/08/2016,114467,394.29,Revenue,Northgate Vehicle Hire (NW) Ltd,17360
Chorley Borough Council,http://statistics.data.gov.uk/id/local-authority/30UE,Service Management & Support,1009,NEW Customer & Digital,Hire Of Transport,30028,Contrct Hire & Operating Lease,5018,Hire of Ford Transit 3.5 tonne tipper reg ND63YEG for 25 week period as per quote,24/08/2016,114467,412.42,Revenue,Northgate Vehicle Hire (NW) Ltd,17360
Chorley Borough Council,http://statistics.data.gov.uk/id/local-authority/30UE,Service Management & Support,1009,NEW Customer & Digital,Hire Of Transport,30028,Contrct Hire & Operating Lease,5018,Hire of Ford Transit 3.5 tonne crewcab tipper reg NL12OFG for 25 week period as per quote,24/08/2016,114468,517.50,Revenue,Northgate Vehicle Hire (NW) Ltd,17360
Chorley Borough Council,http://statistics.data.gov.uk/id/local-authority/30UE,Service Management & Support,1009,NEW Customer & Digital,Hire Of Transport,30028,Contrct Hire & Operating Lease,5018,Hire of Ford Transit 3.5 tonne crewcab tipper reg NL12ONR for 25 week period as per quote,24/08/2016,114468,517.50,Revenue,Northgate Vehicle Hire (NW) Ltd,17360
Chorley Borough Council,http://statistics.data.gov.uk/id/local-authority/30UE,Service Management & Support,1009,NEW Customer & Digital,Hire Of Transport,30028,Contrct Hire & Operating Lease,5018,Hire of Ford Transit 3.5 tonne crewcab tipper reg NK13YPT for 25 week period as per quote,24/08/2016,114468,517.50,Revenue,Northgate Vehicle Hire (NW) Ltd,17360
Chorley Borough Council,http://statistics.data.gov.uk/id/local-authority/30UE,Service Management & Support,1009,NEW Customer & Digital,Hire Of Transport,30028,Contrct Hire & Operating Lease,5018,Hire of Ford Transit 3.5 tonne tipper reg FE65BRF for 25 week period as per quote,24/08/2016,114468,460.00,Revenue,Northgate Vehicle Hire (NW) Ltd,17360
Chorley Borough Council,http://statistics.data.gov.uk/id/local-authority/30UE,Service Management & Support,1009,NEW Customer & Digital,Hire Of Transport,30028,Contrct Hire & Operating Lease,5018,Hire of Ford Transit 3.5 tonne tipper reg WN65MWW for 25 week period as per quote,24/08/2016,114468,414.00,Revenue,Northgate Vehicle Hire (NW) Ltd,17360
Chorley Borough Council,http://statistics.data.gov.uk/id/local-authority/30UE,Service Management & Support,1009,NEW Customer & Digital,Hire Of Transport,30028,Contrct Hire & Operating Lease,5018,Hire of Ford Transit 3.5 tonne tipper reg WN65MHO for 25 week period as per quote,24/08/2016,114468,414.00,Revenue,Northgate Vehicle Hire (NW) Ltd,17360
Chorley Borough Council,http://statistics.data.gov.uk/id/local-authority/30UE,Service Management & Support,1009,NEW Customer & Digital,Hire Of Transport,30028,Contrct Hire & Operating Lease,5018,Hire of Ford Transit 3.5 tonne tipper reg WN65UBO for 25 week period as per quote,24/08/2016,114468,414.00,Revenue,Northgate Vehicle Hire (NW) Ltd,17360
Chorley Borough Council,http://statistics.data.gov.uk/id/local-authority/30UE,Service Management & Support,1009,NEW Customer & Digital,Hire Of Transport,30028,Contrct Hire & Operating Lease,5018,Hire of Ford Transit 3.5 tonne tipper reg WU65KZZfor 25 week period as per quote,24/08/2016,114468,414.00,Revenue,Northgate Vehicle Hire (NW) Ltd,17360
Chorley Borough Council,http://statistics.data.gov.uk/id/local-authority/30UE,Service Management & Support,1009,NEW Customer & Digital,Hire Of Transport,30028,Contrct Hire & Operating Lease,5018,Hire of Ford Transit 3.5 tonne tipper reg ND63YEG for 25 week period as per quote,24/08/2016,114468,516.60,Revenue,Northgate Vehicle Hire (NW) Ltd,17360
Chorley Borough Council,http://statistics.data.gov.uk/id/local-authority/30UE,Democratic Represent and  Mgnt,1007,NEW Customer & Digital,Supplies-Grounds Maintenance,40025,"Equipment, Furniture & Materia",5023,"Event hire of toilet facilities for Chorley Flower Show.3 + 1 toilet trailer 500 4 + 2 toilet trailer 550 Disabled access 85 including",10/08/2016,114463,"1,435.00",Revenue,Northwest Portables,74432
Chorley Borough Council,http://statistics.data.gov.uk/id/local-authority/30UE,Democratic Represent and  Mgnt,1007,NEW Business Development & Growth,Electricity,20013,Energy Costs,5006,Hapers lane rec,03/08/2016,114373,35.04,Revenue,Npower Commercial Gas,16814
Chorley Borough Council,http://statistics.data.gov.uk/id/local-authority/30UE,Service Management & Support,1009,NEW Business Development & Growth,Electricity,20013,Energy Costs,5006,Gillet Playing fields,03/08/2016,114373,33.42,Revenue,Npower Commercial Gas,16814
Chorley Borough Council,http://statistics.data.gov.uk/id/local-authority/30UE,Democratic Represent and  Mgnt,1007,NEW Business Development & Growth,Electricity,20013,Energy Costs,5006,King George Playing fields,03/08/2016,114373,12.29,Revenue,Npower Commercial Gas,16814
Chorley Borough Council,http://statistics.data.gov.uk/id/local-authority/30UE,Economic Development,1096,NEW Business Development & Growth,Electricity,20013,Energy Costs,5006,Market Office,03/08/2016,114373,"3,705.13",Revenue,Npower Commercial Gas,16814
Chorley Borough Council,http://statistics.data.gov.uk/id/local-authority/30UE,Democratic Represent and  Mgnt,1007,NEW Business Development & Growth,Electricity,20013,Energy Costs,5006,Eaves Green cc,03/08/2016,114373,330.56,Revenue,Npower Commercial Gas,16814
Chorley Borough Council,http://statistics.data.gov.uk/id/local-authority/30UE,Community Development,1097,NEW Business Development & Growth,Electricity,20013,Energy Costs,5006,First Floor info centre,03/08/2016,114373,268.81,Revenue,Npower Commercial Gas,16814
Chorley Borough Council,http://statistics.data.gov.uk/id/local-authority/30UE,Community Development,1097,NEW Business Development & Growth,Electricity,20013,Energy Costs,5006,Ground Floor info centre,03/08/2016,114373,145.31,Revenue,Npower Commercial Gas,16814
Chorley Borough Council,http://statistics.data.gov.uk/id/local-authority/30UE,Democratic Represent and  Mgnt,1007,NEW Business Development & Growth,Electricity,20013,Energy Costs,5006,Coronation rec,03/08/2016,114373,33.64,Revenue,Npower Commercial Gas,16814
Chorley Borough Council,http://statistics.data.gov.uk/id/local-authority/30UE,Democratic Represent and  Mgnt,1007,NEW Business Development & Growth,Electricity,20013,Energy Costs,5006,Astley Village cc,03/08/2016,114373,304.99,Revenue,Npower Commercial Gas,16814
Chorley Borough Council,http://statistics.data.gov.uk/id/local-authority/30UE,Democratic Represent and  Mgnt,1007,NEW Business Development & Growth,Electricity,20013,Energy Costs,5006,Astley Hall Cottage,03/08/2016,114373,226.89,Revenue,Npower Commercial Gas,16814
Chorley Borough Council,http://statistics.data.gov.uk/id/local-authority/30UE,Corporate Management,1008,NEW Business Development & Growth,Electricity,20013,Energy Costs,5006,Cemetry Chapel,03/08/2016,114373,8.94,Revenue,Npower Commercial Gas,16814
Chorley Borough Council,http://statistics.data.gov.uk/id/local-authority/30UE,Corporate Management,1008,NEW Business Development & Growth,Electricity,20013,Energy Costs,5006,Cemetries Office,03/08/2016,114373,156.91,Revenue,Npower Commercial Gas,16814
Chorley Borough Council,http://statistics.data.gov.uk/id/local-authority/30UE,Unapportionable Central OHeads,1009,NEW Business Development & Growth,Electricity,20013,Energy Costs,5006,Civic Offices,03/08/2016,114373,"2,989.13",Revenue,Npower Commercial Gas,16814
Chorley Borough Council,http://statistics.data.gov.uk/id/local-authority/30UE,Unapportionable Central OHeads,1009,NEW Business Development & Growth,Electricity,20013,Energy Costs,5006,Bengal Street,03/08/2016,114373,548.10,Revenue,Npower Commercial Gas,16814
Chorley Borough Council,http://statistics.data.gov.uk/id/local-authority/30UE,Unapportionable Central OHeads,1009,NEW Business Development & Growth,Electricity,20013,Energy Costs,5006,Town Hall,03/08/2016,114373,"1,897.30",Revenue,Npower Commercial Gas,16814
Chorley Borough Council,http://statistics.data.gov.uk/id/local-authority/30UE,Economic Development,1096,NEW Business Development & Growth,Electricity,20013,Energy Costs,5006,Portacabin Stall,03/08/2016,114373,8.94,Revenue,Npower Commercial Gas,16814
Chorley Borough Council,http://statistics.data.gov.uk/id/local-authority/30UE,Homelessness,1075,NEW Business Development & Growth,Electricity,20013,Energy Costs,5006,Cotswold House,03/08/2016,114373,"1,047.95",Revenue,Npower Commercial Gas,16814
Chorley Borough Council,http://statistics.data.gov.uk/id/local-authority/30UE,Business Support,1095,NEW Business Development & Growth,Electricity,20013,Energy Costs,5006,Leigh Arms,03/08/2016,114373,742.02,Revenue,Npower Commercial Gas,16814
Chorley Borough Council,http://statistics.data.gov.uk/id/local-authority/30UE,Democratic Represent and  Mgnt,1007,NEW Business Development & Growth,Electricity,20013,Energy Costs,5006,Tunley Holme,03/08/2016,114373,52.20,Revenue,Npower Commercial Gas,16814
Chorley Borough Council,http://statistics.data.gov.uk/id/local-authority/30UE,Business Support,1095,NEW Business Development & Growth,Electricity,20013,Energy Costs,5006,Landlords Communal Area,03/08/2016,114373,"1,676.89",Revenue,Npower Commercial Gas,16814
Chorley Borough Council,http://statistics.data.gov.uk/id/local-authority/30UE,Democratic Represent and  Mgnt,1007,NEW Business Development & Growth,Electricity,20013,Energy Costs,5006,Rangletts rec,03/08/2016,114373,36.78,Revenue,Npower Commercial Gas,16814
Chorley Borough Council,http://statistics.data.gov.uk/id/local-authority/30UE,Parking Services,1066,NEW Business Development & Growth,Electricity,20013,Energy Costs,5006,car park,12/08/2016,114653,1.04,Revenue,Npower Commercial Gas,16814
Chorley Borough Council,http://statistics.data.gov.uk/id/local-authority/30UE,Parking Services,1066,NEW Business Development & Growth,Electricity,20013,Energy Costs,5006,pay and display,12/08/2016,114653,102.49,Revenue,Npower Commercial Gas,16814
Chorley Borough Council,http://statistics.data.gov.uk/id/local-authority/30UE,Culture & Heritage,1036,NEW Business Development & Growth,Electricity,20013,Energy Costs,5006,cctv,12/08/2016,114653,253.53,Revenue,Npower Commercial Gas,16814
Chorley Borough Council,http://statistics.data.gov.uk/id/local-authority/30UE,Democratic Represent and  Mgnt,1007,NEW Business Development & Growth,Electricity,20013,Energy Costs,5006,astley hall farm,24/08/2016,114908,216.20,Revenue,Npower Commercial Gas,16814
Chorley Borough Council,http://statistics.data.gov.uk/id/local-authority/30UE,Corporate Management,1008,NEW Business Development & Growth,Electricity,20013,Energy Costs,5006,cemetry chapel,24/08/2016,114908,7.11,Revenue,Npower Commercial Gas,16814
Chorley Borough Council,http://statistics.data.gov.uk/id/local-authority/30UE,Democratic Represent and  Mgnt,1007,NEW Business Development & Growth,Electricity,20013,Energy Costs,5006,king george playing fields,24/08/2016,114908,60.06,Revenue,Npower Commercial Gas,16814
Chorley Borough Council,http://statistics.data.gov.uk/id/local-authority/30UE,Democratic Represent and  Mgnt,1007,NEW Business Development & Growth,Electricity,20013,Energy Costs,5006,king george playing fields,24/08/2016,114908,24.18,Revenue,Npower Commercial Gas,16814
Chorley Borough Council,http://statistics.data.gov.uk/id/local-authority/30UE,Democratic Represent and  Mgnt,1007,NEW Business Development & Growth,Electricity,20013,Energy Costs,5006,king george playing fields,24/08/2016,114908,48.28,Revenue,Npower Commercial Gas,16814
Chorley Borough Council,http://statistics.data.gov.uk/id/local-authority/30UE,Democratic Represent and  Mgnt,1007,NEW Business Development & Growth,Electricity,20013,Energy Costs,5006,king george playing fields,24/08/2016,114908,97.53,Revenue,Npower Commercial Gas,16814
Chorley Borough Council,http://statistics.data.gov.uk/id/local-authority/30UE,Democratic Represent and  Mgnt,1007,NEW Business Development & Growth,Electricity,20013,Energy Costs,5006,king george playing fields,24/08/2016,114908,-26.89,Revenue,Npower Commercial Gas,16814
Chorley Borough Council,http://statistics.data.gov.uk/id/local-authority/30UE,Democratic Represent and  Mgnt,1007,NEW Business Development & Growth,Electricity,20013,Energy Costs,5006,king george playing fields,24/08/2016,114908,-53.54,Revenue,Npower Commercial Gas,16814
Chorley Borough Council,http://statistics.data.gov.uk/id/local-authority/30UE,Democratic Represent and  Mgnt,1007,NEW Business Development & Growth,Electricity,20013,Energy Costs,5006,king george playing fields,24/08/2016,114908,-100.22,Revenue,Npower Commercial Gas,16814
Chorley Borough Council,http://statistics.data.gov.uk/id/local-authority/30UE,Unapportionable Central OHeads,1009,NEW Business Development & Growth,Electricity,20013,Energy Costs,5006,civic offices,24/08/2016,114908,"2,933.37",Revenue,Npower Commercial Gas,16814
Chorley Borough Council,http://statistics.data.gov.uk/id/local-authority/30UE,Unapportionable Central OHeads,1009,NEW Business Development & Growth,Electricity,20013,Energy Costs,5006,bengal street,24/08/2016,114908,601.18,Revenue,Npower Commercial Gas,16814
Chorley Borough Council,http://statistics.data.gov.uk/id/local-authority/30UE,Unapportionable Central OHeads,1009,NEW Business Development & Growth,Electricity,20013,Energy Costs,5006,town hall,24/08/2016,114908,"1,859.20",Revenue,Npower Commercial Gas,16814
Chorley Borough Council,http://statistics.data.gov.uk/id/local-authority/30UE,Homelessness,1075,NEW Business Development & Growth,Electricity,20013,Energy Costs,5006,cotswold house,24/08/2016,114908,202.22,Revenue,Npower Commercial Gas,16814
Chorley Borough Council,http://statistics.data.gov.uk/id/local-authority/30UE,Democratic Represent and  Mgnt,1007,NEW Business Development & Growth,Electricity,20013,Energy Costs,5006,tunley holme,24/08/2016,114908,50.73,Revenue,Npower Commercial Gas,16814
Chorley Borough Council,http://statistics.data.gov.uk/id/local-authority/30UE,Recreation & Sport,1037,NEW Business Development & Growth,Electricity,20013,Energy Costs,5006,buttermere cc,24/08/2016,114908,107.72,Revenue,Npower Commercial Gas,16814
Chorley Borough Council,http://statistics.data.gov.uk/id/local-authority/30UE,Business Support,1095,NEW Business Development & Growth,Electricity,20013,Energy Costs,5006,102a market street,24/08/2016,114908,99.29,Revenue,Npower Commercial Gas,16814
Chorley Borough Council,http://statistics.data.gov.uk/id/local-authority/30UE,Parking Services,1066,NEW Business Development & Growth,External Contractors,50008,Private Contractors,5042,"Provision of off street car park enforcement, cash collection, cash counting facilities and third party bulk cash collections for April",03/08/2016,114406,"3,986.84",Revenue,NSL Limited,67253
Chorley Borough Council,http://statistics.data.gov.uk/id/local-authority/30UE,Corporate Management,1008,NEW Business Development & Growth,Misc Employee Costs,18001,Indirect Employee Expenses,5002,contribution,05/08/2016,114430,"30,000.00",Revenue,OnSide Youth Zones,72661
Chorley Borough Council,http://statistics.data.gov.uk/id/local-authority/30UE,Community Development,1097,NEW Policy & Governance,Core Funding Grants,40133,Grants and Subscriptions,5031,Delviery of an arts and employment service for young people - 1st six monthly instalment 2016/17,24/08/2016,114973,"5,000.00",Revenue,OnSide Youth Zones,72661
Chorley Borough Council,http://statistics.data.gov.uk/id/local-authority/30UE,Unapportionable Central OHeads,1009,NEW Customer & Digital,Stationery,40050,"Printing, Stationery & General",5026,"162x235mm Mailing Wallets 90GSM White opaque gummed flaps window 20,000 at 24.58 + VAT per 1000 2x delivery of 10,000 ",03/08/2016,114414,491.60,Revenue,Opal Envelopes Ltd,19356
Chorley Borough Council,http://statistics.data.gov.uk/id/local-authority/30UE,Unapportionable Central OHeads,1009,NEW Policy & Governance,General Subscriptions,40146,Grants and Subscriptions,5031,6 x credits for digital editions of publications,12/08/2016,114660,600.00,Revenue,PageSuite Ltd,22036
Chorley Borough Council,http://statistics.data.gov.uk/id/local-authority/30UE,Central Support Services,1009,NEW Early Intervention,Children's Activities,40188,Miscellaneous Expenses,5034,Delivery of clay modelling and arts and crafts session through summer 2016,24/08/2016,114833,320.00,Revenue,NAME REDACTED,18905
Chorley Borough Council,http://statistics.data.gov.uk/id/local-authority/30UE,Corporate Management,1008,NEW Customer & Digital,Survey Expenses,40069,Services,5027,survey fee,17/08/2016,114827,"43,659.00",Revenue,Pell Frischmann Consultants Ltd,76097
Chorley Borough Council,http://statistics.data.gov.uk/id/local-authority/30UE,Corporate Management,1008,NEW Customer & Digital,Survey Expenses,40069,Services,5027,survey fee,17/08/2016,114827,"1,984.50",Revenue,Pell Frischmann Consultants Ltd,76097
Chorley Borough Council,http://statistics.data.gov.uk/id/local-authority/30UE,Democratic Represent and  Mgnt,1007,NEW Policy & Governance,Performing Rights Society Fees,40148,Grants and Subscriptions,5031,Fees for Lancastrian for period 6th April to 5th July 2016.,03/08/2016,114379,673.37,Revenue,Performing Right Society Ltd,19909
Chorley Borough Council,http://statistics.data.gov.uk/id/local-authority/30UE,Central Support Services,1009,NEW Early Intervention,External Contractor,40198,Miscellaneous Expenses,5034,Pest control duties for 2016/17,03/08/2016,114254,340.00,Revenue,NAME REDACTED,16727
Chorley Borough Council,http://statistics.data.gov.uk/id/local-authority/30UE,Central Support Services,1009,NEW Early Intervention,External Contractor,40198,Miscellaneous Expenses,5034,Pest control duties for 2016/17,12/08/2016,114507,340.00,Revenue,NAME REDACTED,16727
Chorley Borough Council,http://statistics.data.gov.uk/id/local-authority/30UE,Central Support Services,1009,NEW Early Intervention,External Contractor,40198,Miscellaneous Expenses,5034,Pest control duties for 2016/17,12/08/2016,114696,340.00,Revenue,NAME REDACTED,16727
Chorley Borough Council,http://statistics.data.gov.uk/id/local-authority/30UE,Central Support Services,1009,NEW Early Intervention,External Contractor,40198,Miscellaneous Expenses,5034,Pest control duties for 2016/17,24/08/2016,114990,340.00,Revenue,NAME REDACTED,16727
Chorley Borough Council,http://statistics.data.gov.uk/id/local-authority/30UE,Central Support Services,1009,NEW Early Intervention,External Contractor,40198,Miscellaneous Expenses,5034,Pest control duties for 2016/17,26/08/2016,115058,340.00,Revenue,NAME REDACTED,16727
Chorley Borough Council,http://statistics.data.gov.uk/id/local-authority/30UE,Service Management & Support,1009,NEW Customer & Digital,Diesel/Derv,30007,Direct Transport Costs,5016,Supply 4000 litres of red diesel to be delivered to Bengal St depot as per your price.,26/08/2016,114888,"2,225.48",Revenue,Pilkington Oils,18075
Chorley Borough Council,http://statistics.data.gov.uk/id/local-authority/30UE,Capital,Capital,NEW Business Development & Growth,Main Contractor,3007,Capital Expenditure,Capital,"RIBA Stage 3 - 24,040",10/08/2016,114608,"2,353.99",Capital,Planit IE Limited,62532
Chorley Borough Council,http://statistics.data.gov.uk/id/local-authority/30UE,Capital,Capital,NEW Business Development & Growth,Main Contractor,3007,Capital Expenditure,Capital,"5 visualisations - 4,912",10/08/2016,114608,"2,025.00",Capital,Planit IE Limited,62532
Chorley Borough Council,http://statistics.data.gov.uk/id/local-authority/30UE,Business Support,1095,NEW Policy & Governance,Miscellaneous Expenses,40200,Miscellaneous Expenses,5034,"Preparation of Vision and Masterplan Options 1,693.75 and preparation of Masterplan for Change 5,887.50",10/08/2016,114672,"7,581.25",Revenue,Planit IE Limited,62532
Chorley Borough Council,http://statistics.data.gov.uk/id/local-authority/30UE,Business Support,1095,NEW Policy & Governance,Miscellaneous Expenses,40200,Miscellaneous Expenses,5034,Preparation of vision and master plan options - land at Great Knowley and Botany Bay (May invoice),10/08/2016,114673,"5,000.00",Revenue,Planit IE Limited,62532
Chorley Borough Council,http://statistics.data.gov.uk/id/local-authority/30UE,Capital,Capital,NEW Business Development & Growth,Main Contractor,3007,Capital Expenditure,Capital,Bengal Street Site RIBA 01/02 - Concept Design - Person Day,12/08/2016,114739,"1,837.50",Capital,Planit IE Limited,62532
Chorley Borough Council,http://statistics.data.gov.uk/id/local-authority/30UE,Capital,Capital,NEW Business Development & Growth,Main Contractor,3007,Capital Expenditure,Capital,Bengal Street Site - RIBA 03 - Developed Design - Person Day,12/08/2016,114739,"2,493.75",Capital,Planit IE Limited,62532
Chorley Borough Council,http://statistics.data.gov.uk/id/local-authority/30UE,Capital,Capital,NEW Business Development & Growth,Main Contractor,3007,Capital Expenditure,Capital,Gala Bingo Site - RIBA 01/02 - Concept Design - Person Day,12/08/2016,114739,875.00,Capital,Planit IE Limited,62532
Chorley Borough Council,http://statistics.data.gov.uk/id/local-authority/30UE,Capital,Capital,NEW Business Development & Growth,Main Contractor,3007,Capital Expenditure,Capital,Fleet Street Site - RIBA 01/02 - Concept Design - Person Day,12/08/2016,114739,525.00,Capital,Planit IE Limited,62532
Chorley Borough Council,http://statistics.data.gov.uk/id/local-authority/30UE,Democratic Represent and  Mgnt,1007,NEW Business Development & Growth,Playground Equipment,40008,"Equipment, Furniture & Materia",5023,Gravity bowl for Union Street Play Area and delivery to Bengal St depot,10/08/2016,114456,"1,092.50",Revenue,Playdale Playgrounds Limited,18672
Chorley Borough Council,http://statistics.data.gov.uk/id/local-authority/30UE,Central Support Services,1009,NEW Early Intervention,Other Contributions,40145,Grants and Subscriptions,5031,Contribution to PCSO Provision in Chorley - Neighbourhood Policing and Early Action - Payable in 4 equal quarterly payments,10/08/2016,113838,"74,250.00",Revenue,Police & Crime Commissioner,17548
Chorley Borough Council,http://statistics.data.gov.uk/id/local-authority/30UE,Precepts and Collection Fund,Precepts,NEW Policy & Governance,LPA Precept,2010,Precepts & Collection Fund,Precept,council tax precept,15/08/2016,114838,"577,515.00",Revenue,Police & Crime Commissioner,17438
Chorley Borough Council,http://statistics.data.gov.uk/id/local-authority/30UE,Capital,Capital,NEW Business Development & Growth,Main Contractor,3007,Capital Expenditure,Capital,Manufacture and printing of 15 signs with associated fixings and installation along Carr Brook Linear Park,10/08/2016,114121,"1,500.86",Capital,Poppy Signs Ltd,21898
Chorley Borough Council,http://statistics.data.gov.uk/id/local-authority/30UE,Tourism,1039,NEW Policy & Governance,Promotional Expenses,40159,Miscellaneous Expenses,5034,8 x A0 size map signs for the Chorley Flower Show,05/08/2016,114209,669.17,Revenue,Poppy Signs Ltd,21898
Chorley Borough Council,http://statistics.data.gov.uk/id/local-authority/30UE,Tourism,1039,NEW Policy & Governance,Promotional Expenses,40159,Miscellaneous Expenses,5034,2 x 9m banners and 1 x 13m banner for the bridge at the Chorley Flower Show,05/08/2016,114210,384.40,Revenue,Poppy Signs Ltd,21898
Chorley Borough Council,http://statistics.data.gov.uk/id/local-authority/30UE,Tourism,1039,NEW Policy & Governance,Promotional Expenses,40159,Miscellaneous Expenses,5034,Cafe Ambio banner plus 12 A2 yellow signs for Chorley Flower Show,05/08/2016,114211,296.51,Revenue,Poppy Signs Ltd,21898
Chorley Borough Council,http://statistics.data.gov.uk/id/local-authority/30UE,Unapportionable Central OHeads,1009,NEW Policy & Governance,Fixtures & Fittings - Purchase,20027,Fixtures and Fittings,5010,6 x picture boards for Union Street offices,12/08/2016,114663,682.92,Revenue,Poppy Signs Ltd,21898
Chorley Borough Council,http://statistics.data.gov.uk/id/local-authority/30UE,Tourism,1039,NEW Policy & Governance,Professional Fees,40063,Services,5027,Professional Fees,24/08/2016,115006,400.00,Revenue,Pretty Ugly Plants,71510
Chorley Borough Council,http://statistics.data.gov.uk/id/local-authority/30UE,Unapportionable Central OHeads,1009,NEW Policy & Governance,Exhibitions & Special Events,40158,Miscellaneous Expenses,5034,Travel expenses for the Chorley Flower Show celebrities,26/08/2016,115059,470.00,Revenue,Prime Performers Limited,70499
Chorley Borough Council,http://statistics.data.gov.uk/id/local-authority/30UE,Elections,1012,NEW Policy & Governance,Postages,40082,Communication and Computing,5028,"Annual cavass Initial HEF 49,3673 (walk sort) properties 251 (standard delivery) properties",05/08/2016,114466,"12,957.93",Revenue,Print Image Facilities LLP,57870
Chorley Borough Council,http://statistics.data.gov.uk/id/local-authority/30UE,Elections,1012,NEW Policy & Governance,Printing,40043,"Printing, Stationery & General",5026,EU Referendum ballot books,17/08/2016,114828,"5,851.50",Revenue,Print Image Network,21171
Chorley Borough Council,http://statistics.data.gov.uk/id/local-authority/30UE,Business Support,1095,NEW Business Development & Growth,Miscellaneous Expenses,40200,Miscellaneous Expenses,5034,To carry out 400 surveys as per quotation 30th June NAME REDACTED to NAME REDACTED. Please note as discussed ,10/08/2016,114309,"2,970.00",Revenue,QRS Market Research Limited,76109
Chorley Borough Council,http://statistics.data.gov.uk/id/local-authority/30UE,Service Management & Support,1009,NEW Customer & Digital,Supplies-Grounds Maintenance,40025,"Equipment, Furniture & Materia",5023,400M2 Turf,17/08/2016,114535,660.00,Revenue,R H F Turf,17990
Chorley Borough Council,http://statistics.data.gov.uk/id/local-authority/30UE,Corporate Management,1008,NEW Policy & Governance,Exhibitions & Special Events,40158,Miscellaneous Expenses,5034,Hire of Peppa Pig character for meet and greets at Market Walk,31/08/2016,113947,"2,610.00",Revenue,Rainbow Productions Ltd,21858
Chorley Borough Council,http://statistics.data.gov.uk/id/local-authority/30UE,Non Domestic Rates Redistribut,,NEW Policy & Governance,Tariff to Business Rates Pool,49002,Expenditure not in NCOS,,business rates pool,15/08/2016,114276,"707,100.00",Revenue,Ribble Valley Borough Council,21100
Chorley Borough Council,http://statistics.data.gov.uk/id/local-authority/30UE,Democratic Represent and  Mgnt,1007,NEW Customer & Digital,Supplies-Grounds Maintenance,40025,"Equipment, Furniture & Materia",5023,"Supply and deliver 6No. log seats approx. 600mm in dia, approx. 600mm in height, each receive a Danish oil finish.",17/08/2016,114372,385.00,Revenue,Ribble Valley Log Supplies Ltd,76141
Chorley Borough Council,http://statistics.data.gov.uk/id/local-authority/30UE,Service Management & Support,1009,NEW Customer & Digital,Supplies-Grounds Maintenance,40025,"Equipment, Furniture & Materia",5023,Trustee amenity weedkiller- Glyphosate,26/08/2016,114631,"1,060.00",Revenue,Rigby Taylor Ltd,16299
Chorley Borough Council,http://statistics.data.gov.uk/id/local-authority/30UE,Corporate Management,1008,NEW Customer & Digital,Other Contributions,40145,Grants and Subscriptions,5031,ADDRESS REDACTED,17/08/2016,114826,"2,089.56",Revenue,NAME REDACTED,74825
Chorley Borough Council,http://statistics.data.gov.uk/id/local-authority/30UE,Democratic Represent and  Mgnt,1007,NEW Policy & Governance,Building Services Maintenance Other,20076,Fixtures and Fittings,5010,Supply and installation of stone netting to front of hall 1780 plus VAT 356,10/08/2016,114460,"1,780.00",Revenue,Roger Wilkson Services Ltd,76164
Chorley Borough Council,http://statistics.data.gov.uk/id/local-authority/30UE,Elections,1012,NEW Policy & Governance,Postages,40082,Communication and Computing,5028,"EU Referendum - Mail centre sweeps, with returned postal vote postage",26/08/2016,115075,"1,447.45",Revenue,Royal Mail Group Plc,17522
Chorley Borough Council,http://statistics.data.gov.uk/id/local-authority/30UE,Homelessness,1075,NEW Early Intervention,Rental Bond Scheme,40241,Miscellaneous Expenses,5034,cash bond,10/08/2016,114429,495.00,Revenue,Royce Properties Ltd,76171
Chorley Borough Council,http://statistics.data.gov.uk/id/local-authority/30UE,Tourism,1039,NEW Policy & Governance,Furniture - Hire,40013,"Equipment, Furniture & Materia",5023,Final balance for floral staging equipment and furniture hire for the Chorley Flower Show.,17/08/2016,114787,"4,720.50",Revenue,RPM Events,70613
Chorley Borough Council,http://statistics.data.gov.uk/id/local-authority/30UE,Democratic Represent and  Mgnt,1007,NEW Policy & Governance,Member Development Programme,17007,Indirect Employee Expenses,5002,The Future of the `Northern Powerhouse` Conference - delegate Councillor NAME REDACTED - 8 November 2016 at the Adelphi,24/08/2016,114972,255.00,Revenue,Salford Professional Development Ltd,68968
Chorley Borough Council,http://statistics.data.gov.uk/id/local-authority/30UE,Business Support,1095,NEW Business Development & Growth,Grants To Other Organisations,40127,Grants and Subscriptions,5031,grants,26/08/2016,114901,250.00,Revenue,NAME REDACTED,76205
Chorley Borough Council,http://statistics.data.gov.uk/id/local-authority/30UE,Business Support,1095,NEW Business Development & Growth,Electricity,20013,Energy Costs,5006,ADDRESS REDACTED,10/08/2016,114604,313.76,Revenue,Scottish Hydro Electric,64087
Chorley Borough Council,http://statistics.data.gov.uk/id/local-authority/30UE,Homelessness,1075,NEW Early Intervention,External Contractor,40198,Miscellaneous Expenses,5034,"For Concierge Service at Cotswold Supported Housing, Cotswold Road, Chorley, Lancashire, PR7 3HW. April 2016",17/08/2016,114265,"2,225.60",Revenue,Sector Security Services,19269
Chorley Borough Council,http://statistics.data.gov.uk/id/local-authority/30UE,Homelessness,1075,NEW Early Intervention,External Contractor,40198,Miscellaneous Expenses,5034,"For Concierge Service at Cotswold Supported Housing, Cotswold Road, Chorley, Lancashire, PR7 3HW. April 2016 - March 2017",10/08/2016,114632,"2,225.60",Revenue,Sector Security Services,19269
Chorley Borough Council,http://statistics.data.gov.uk/id/local-authority/30UE,Homelessness,1075,NEW Early Intervention,External Contractor,40198,Miscellaneous Expenses,5034,"For Concierge Service at Cotswold Supported Housing, Cotswold Road, Chorley, Lancashire, PR7 3HW. April 2016 - March 2017",17/08/2016,114749,"2,145.67",Revenue,Sector Security Services,19269
Chorley Borough Council,http://statistics.data.gov.uk/id/local-authority/30UE,Homelessness,1075,NEW Early Intervention,External Contractor,40198,Miscellaneous Expenses,5034,"For Concierge Service at Cotswold Supported Housing, Cotswold Road, Chorley, Lancashire, PR7 3HW. April 2016 - March 2017",17/08/2016,114750,"2,269.80",Revenue,Sector Security Services,19269
Chorley Borough Council,http://statistics.data.gov.uk/id/local-authority/30UE,Homelessness,1075,NEW Early Intervention,External Contractor,40198,Miscellaneous Expenses,5034,"For Concierge Service at Cotswold Supported Housing, Cotswold Road, Chorley, Lancashire, PR7 3HW. April 2016 - March 2017",24/08/2016,114891,"1,159.60",Revenue,Sector Security Services,19269
Chorley Borough Council,http://statistics.data.gov.uk/id/local-authority/30UE,Homelessness,1075,NEW Early Intervention,Training Course Fees,17010,Indirect Employee Expenses,5002,"Manchester Tackling Homelessness conference. Manchester conference centre, ",10/08/2016,114206,280.00,Revenue,Shelter Training,21902
Chorley Borough Council,http://statistics.data.gov.uk/id/local-authority/30UE,Economic Development,1096,NEW Business Development & Growth,Miscellaneous Expenses,40200,Miscellaneous Expenses,5034,"For annual membership, and stand reservation for March 2017 event",05/08/2016,114422,445.00,Revenue,Shout Network Limited,69551
Chorley Borough Council,http://statistics.data.gov.uk/id/local-authority/30UE,Tourism,1039,NEW Policy & Governance,Tools & Equipment - Hire,40004,"Equipment, Furniture & Materia",5023,Hire of 40 radios with ear pieces for the Chorley Flower Show,10/08/2016,114619,448.40,Revenue,Sitelink Communications Ltd,53286
Chorley Borough Council,http://statistics.data.gov.uk/id/local-authority/30UE,Service Management & Support,1009,NEW Customer & Digital,Protective Clothing,40040,"Clothing, Uniforms and Laundry",5025,"High Viz Yellow Waterproof outer jacket, c/w Chorley Council Logo on front and back.  Size Medium.  Product Code = CSR32",05/08/2016,114377,222.50,Revenue,Smart Image Workwear,21064
Chorley Borough Council,http://statistics.data.gov.uk/id/local-authority/30UE,Service Management & Support,1009,NEW Customer & Digital,Protective Clothing,40040,"Clothing, Uniforms and Laundry",5025,"High Viz Yellow waterproof outer jacket, c/w Chorley Council Logo on front and back.  Size = Large.  Product Code = CSR32",05/08/2016,114377,111.25,Revenue,Smart Image Workwear,21064
Chorley Borough Council,http://statistics.data.gov.uk/id/local-authority/30UE,Service Management & Support,1009,NEW Customer & Digital,Protective Clothing,40040,"Clothing, Uniforms and Laundry",5025,"High Viz Yellow waterproof outer jacket, c/w Chorley Council Logo on front and back.  Size = Xtra Large.  Product Code = CSR32",05/08/2016,114377,111.25,Revenue,Smart Image Workwear,21064
Chorley Borough Council,http://statistics.data.gov.uk/id/local-authority/30UE,Tourism,1039,NEW Customer & Digital,Supplies-Highways,40026,"Equipment, Furniture & Materia",5023,Traffic signs for Chorley Flower show Quote ref: CHORC160707,05/08/2016,114389,884.30,Revenue,Smart Image Workwear,21064
Chorley Borough Council,http://statistics.data.gov.uk/id/local-authority/30UE,Central Support Services,1009,NEW Customer & Digital,Computer Software-Maintenance,40107,Communication and Computing,5028,OfficeProPlus ALNG LicSAPk MVL Pltfrm,10/08/2016,114493,"16,000.00",Revenue,Softcat Ltd,69996
Chorley Borough Council,http://statistics.data.gov.uk/id/local-authority/30UE,Central Support Services,1009,NEW Customer & Digital,Computer Software-Maintenance,40107,Communication and Computing,5028,VDA ALNG SubsVL MVL Pltfrm PerDvc,10/08/2016,114493,"8,400.00",Revenue,Softcat Ltd,69996
Chorley Borough Council,http://statistics.data.gov.uk/id/local-authority/30UE,Central Support Services,1009,NEW Customer & Digital,Computer Software-Maintenance,40107,Communication and Computing,5028,Off365PE3 ShrdSvr ALNG SubsVL MVL AddOn to user ECALw/OPP,10/08/2016,114493,65.70,Revenue,Softcat Ltd,69996
Chorley Borough Council,http://statistics.data.gov.uk/id/local-authority/30UE,Central Support Services,1009,NEW Customer & Digital,Computer Software-Maintenance,40107,Communication and Computing,5028,PrjctPro ALNG LicSAPk MVL w1PrjctSvrCAL,10/08/2016,114514,"4,488.04",Revenue,Softcat Ltd,69996
Chorley Borough Council,http://statistics.data.gov.uk/id/local-authority/30UE,Central Support Services,1009,NEW Customer & Digital,Computer Software-Maintenance,40107,Communication and Computing,5028,VisioPro ALNG LicSAPk MVL,10/08/2016,114514,740.34,Revenue,Softcat Ltd,69996
Chorley Borough Council,http://statistics.data.gov.uk/id/local-authority/30UE,Tourism,1039,NEW Policy & Governance,Hospitality,40201,Miscellaneous Expenses,5034,Gala Dinner for the Chorley Flower Show,12/08/2016,114753,"1,286.95",Revenue,Southcott Catering Ltd,21842
Chorley Borough Council,http://statistics.data.gov.uk/id/local-authority/30UE,Unapportionable Central OHeads,1009,NEW Business Development & Growth,General Repairs - Reactive,20004,Repairs Maintenance & Alts,5005,Blanket Order for reactive works 2016-17,10/08/2016,114270,870.00,Revenue,Stringfellow Bldg Cntrctrs Ltd,17893
Chorley Borough Council,http://statistics.data.gov.uk/id/local-authority/30UE,Capital,Capital,NEW Customer & Digital,Other Contractor,3012,Capital Expenditure,Capital,Install additional stop tap connected to mains along main drive in Astley Park,10/08/2016,114375,"1,800.00",Capital,Stringfellow Bldg Cntrctrs Ltd,17893
Chorley Borough Council,http://statistics.data.gov.uk/id/local-authority/30UE,Unapportionable Central OHeads,1009,NEW Business Development & Growth,General Repairs - Reactive,20004,Repairs Maintenance & Alts,5005,Blanket Order for reactive works 2016-17,05/08/2016,114382,527.24,Revenue,Stringfellow Bldg Cntrctrs Ltd,17893
Chorley Borough Council,http://statistics.data.gov.uk/id/local-authority/30UE,Unapportionable Central OHeads,1009,NEW Business Development & Growth,General Repairs - Reactive,20004,Repairs Maintenance & Alts,5005,Blanket Order for reactive works 2016-17,05/08/2016,114384,"3,623.50",Revenue,Stringfellow Bldg Cntrctrs Ltd,17893
Chorley Borough Council,http://statistics.data.gov.uk/id/local-authority/30UE,Unapportionable Central OHeads,1009,NEW Business Development & Growth,General Repairs - Reactive,20004,Repairs Maintenance & Alts,5005,Blanket Order for reactive works 2016-17,05/08/2016,114385,592.28,Revenue,Stringfellow Bldg Cntrctrs Ltd,17893
Chorley Borough Council,http://statistics.data.gov.uk/id/local-authority/30UE,Unapportionable Central OHeads,1009,NEW Business Development & Growth,General Repairs - Reactive,20004,Repairs Maintenance & Alts,5005,Blanket Order for reactive works 2016-17,05/08/2016,114386,"1,406.39",Revenue,Stringfellow Bldg Cntrctrs Ltd,17893
Chorley Borough Council,http://statistics.data.gov.uk/id/local-authority/30UE,Unapportionable Central OHeads,1009,NEW Business Development & Growth,General Repairs - Reactive,20004,Repairs Maintenance & Alts,5005,Blanket Order for reactive works 2016-17,05/08/2016,114388,314.75,Revenue,Stringfellow Bldg Cntrctrs Ltd,17893
Chorley Borough Council,http://statistics.data.gov.uk/id/local-authority/30UE,Unapportionable Central OHeads,1009,NEW Business Development & Growth,General Repairs - Reactive,20004,Repairs Maintenance & Alts,5005,Blanket Order for reactive works 2016-17,05/08/2016,114392,468.96,Revenue,Stringfellow Bldg Cntrctrs Ltd,17893
Chorley Borough Council,http://statistics.data.gov.uk/id/local-authority/30UE,Unapportionable Central OHeads,1009,NEW Business Development & Growth,General Repairs - Reactive,20004,Repairs Maintenance & Alts,5005,Blanket Order for reactive works 2016-17,05/08/2016,114401,942.10,Revenue,Stringfellow Bldg Cntrctrs Ltd,17893
Chorley Borough Council,http://statistics.data.gov.uk/id/local-authority/30UE,Unapportionable Central OHeads,1009,NEW Business Development & Growth,General Repairs - Reactive,20004,Repairs Maintenance & Alts,5005,Blanket Order for reactive works 2016-17,10/08/2016,114517,"1,425.00",Revenue,Stringfellow Bldg Cntrctrs Ltd,17893
Chorley Borough Council,http://statistics.data.gov.uk/id/local-authority/30UE,Unapportionable Central OHeads,1009,NEW Business Development & Growth,General Repairs - Reactive,20004,Repairs Maintenance & Alts,5005,Blanket Order for reactive works 2016-17,10/08/2016,114518,"1,707.58",Revenue,Stringfellow Bldg Cntrctrs Ltd,17893
Chorley Borough Council,http://statistics.data.gov.uk/id/local-authority/30UE,Unapportionable Central OHeads,1009,NEW Business Development & Growth,General Repairs - Reactive,20004,Repairs Maintenance & Alts,5005,Blanket Order for reactive works 2016-17,12/08/2016,114593,278.63,Revenue,Stringfellow Bldg Cntrctrs Ltd,17893
Chorley Borough Council,http://statistics.data.gov.uk/id/local-authority/30UE,Capital,Capital,NEW Business Development & Growth,Equipment,3014,Capital Expenditure,Capital,Replacement of Ferroli Boiler with enhanced Worcester Bosch 36 CDI boiler at CAB ADDRESS REDACTED,12/08/2016,114693,"1,750.00",Capital,Stringfellow Bldg Cntrctrs Ltd,17893
Chorley Borough Council,http://statistics.data.gov.uk/id/local-authority/30UE,Unapportionable Central OHeads,1009,NEW Business Development & Growth,General Repairs - Reactive,20004,Repairs Maintenance & Alts,5005,Blanket Order for reactive works 2016-17,12/08/2016,114754,266.36,Revenue,Stringfellow Bldg Cntrctrs Ltd,17893
Chorley Borough Council,http://statistics.data.gov.uk/id/local-authority/30UE,Unapportionable Central OHeads,1009,NEW Business Development & Growth,General Repairs - Reactive,20004,Repairs Maintenance & Alts,5005,Blanket Order for reactive works 2016-17,26/08/2016,114869,456.26,Revenue,Stringfellow Bldg Cntrctrs Ltd,17893
Chorley Borough Council,http://statistics.data.gov.uk/id/local-authority/30UE,Unapportionable Central OHeads,1009,NEW Business Development & Growth,General Repairs - Reactive,20004,Repairs Maintenance & Alts,5005,Blanket Order for reactive works 2016-17,26/08/2016,114871,554.43,Revenue,Stringfellow Bldg Cntrctrs Ltd,17893
Chorley Borough Council,http://statistics.data.gov.uk/id/local-authority/30UE,Unapportionable Central OHeads,1009,NEW Business Development & Growth,General Repairs - Reactive,20004,Repairs Maintenance & Alts,5005,Blanket Order for reactive works 2016-17,17/08/2016,114872,258.25,Revenue,Stringfellow Bldg Cntrctrs Ltd,17893
Chorley Borough Council,http://statistics.data.gov.uk/id/local-authority/30UE,Unapportionable Central OHeads,1009,NEW Business Development & Growth,General Repairs - Reactive,20004,Repairs Maintenance & Alts,5005,Blanket Order for reactive works 2016-17,17/08/2016,114874,299.39,Revenue,Stringfellow Bldg Cntrctrs Ltd,17893
Chorley Borough Council,http://statistics.data.gov.uk/id/local-authority/30UE,Unapportionable Central OHeads,1009,NEW Business Development & Growth,General Repairs - Reactive,20004,Repairs Maintenance & Alts,5005,Blanket Order for reactive works 2016-17,26/08/2016,114967,"1,215.65",Revenue,Stringfellow Bldg Cntrctrs Ltd,17893
Chorley Borough Council,http://statistics.data.gov.uk/id/local-authority/30UE,Unapportionable Central OHeads,1009,NEW Business Development & Growth,General Repairs - Reactive,20004,Repairs Maintenance & Alts,5005,conduct a measured survey including elevations of the Eaves Road Depot site (formerly bus depot) as per quote ref: 16F044.,10/08/2016,114459,"1,650.00",Revenue,Survey Operations Ltd,55910
Chorley Borough Council,http://statistics.data.gov.uk/id/local-authority/30UE,Capital,Capital,NEW Business Development & Growth,Surveyors Fees,3021,Capital Expenditure,Capital,Topographical survey at Astley Village in accordance with quotation 16E190,24/08/2016,114945,"1,100.00",Capital,Survey Operations Ltd,55910
Chorley Borough Council,http://statistics.data.gov.uk/id/local-authority/30UE,Economic Development,1096,NEW Business Development & Growth,Cleaning Materials,40019,"Equipment, Furniture & Materia",5023,Cleaning products for the covered market toilets,26/08/2016,114834,379.76,Revenue,Swiftkleen Ltd,17933
Chorley Borough Council,http://statistics.data.gov.uk/id/local-authority/30UE,Capital,Capital,NEW Early Intervention,Main Contractor,3007,Capital Expenditure,Capital,Capital Works - all upgrade of equipment and control room,03/08/2016,113799,"78,476.51",Capital,Technology Solutions,72376
Chorley Borough Council,http://statistics.data.gov.uk/id/local-authority/30UE,Democratic Represent and  Mgnt,1007,NEW Policy & Governance,Training Course Fees,17010,Indirect Employee Expenses,5002,2 delegates (non ADSO members)  for `STEPS TO MANAGEMENT 2` on Tuesday 13 September 2016 at Warrington.,10/08/2016,114616,260.00,Revenue,The Association of Democratic Services,22170
Chorley Borough Council,http://statistics.data.gov.uk/id/local-authority/30UE,Business Support,1095,NEW Business Development & Growth,Grants To Other Organisations,40127,Grants and Subscriptions,5031,subsidy 6,12/08/2016,114544,529.00,Revenue,The Buttonhole,18367
Chorley Borough Council,http://statistics.data.gov.uk/id/local-authority/30UE,Tourism,1039,NEW Policy & Governance,Children's Activities,40188,Miscellaneous Expenses,5034,"Two days of children`s craft and activities, staff and materials, for the Chorley Flower Show",05/08/2016,114458,"1,085.00",Revenue,The Creation Station Merseyside,71522
Chorley Borough Council,http://statistics.data.gov.uk/id/local-authority/30UE,Corporate Management,1008,NEW Policy & Governance,Exhibitions & Special Events,40158,Miscellaneous Expenses,5034,2 days of summer activities for children in Market Walk on Thursday 28 July and Thursday 1 September,31/08/2016,115156,415.00,Revenue,The Creation Station Merseyside,71522
Chorley Borough Council,http://statistics.data.gov.uk/id/local-authority/30UE,Unapportionable Central OHeads,1009,NEW Business Development & Growth,General Repairs - Reactive,20004,Repairs Maintenance & Alts,5005,Blanket order for REACTIVE works for 2016.,12/08/2016,114723,340.00,Revenue,The Guardian Shutter Co LTD,21769
Chorley Borough Council,http://statistics.data.gov.uk/id/local-authority/30UE,Unapportionable Central OHeads,1009,NEW Business Development & Growth,Planned Maintenance,20006,Repairs Maintenance & Alts,5005,Blanket order for PPM works for 2016.,24/08/2016,114947,275.00,Revenue,The Guardian Shutter Co LTD,21769
Chorley Borough Council,http://statistics.data.gov.uk/id/local-authority/30UE,Unapportionable Central OHeads,1009,NEW Business Development & Growth,Planned Maintenance,20006,Repairs Maintenance & Alts,5005,Blanket order for PPM works for 2016.,24/08/2016,114948,420.00,Revenue,The Guardian Shutter Co LTD,21769
Chorley Borough Council,http://statistics.data.gov.uk/id/local-authority/30UE,Tourism,1039,NEW Policy & Governance,Professional Fees,40063,Services,5027,Professional Fees,24/08/2016,115005,250.00,Revenue,The Lost World Nursery,71495
Chorley Borough Council,http://statistics.data.gov.uk/id/local-authority/30UE,Tourism,1039,NEW Policy & Governance,Publicity - Advertising,40157,Miscellaneous Expenses,5034,Half page advert for the Chorley Flower Show,24/08/2016,115024,280.00,Revenue,The Roombook Ltd,67970
Chorley Borough Council,http://statistics.data.gov.uk/id/local-authority/30UE,Unapportionable Central OHeads,1009,NEW Policy & Governance,General Subscriptions,40146,Grants and Subscriptions,5031,Subscription to SpendPro  shared between Chorley and SRBC for the period April 15 to March 16,10/08/2016,112594,750.00,Revenue,Trafford Council,52972
Chorley Borough Council,http://statistics.data.gov.uk/id/local-authority/30UE,Service Management & Support,1009,NEW Customer & Digital,External Contractor,40198,Miscellaneous Expenses,5034,Carryout emergency tree works at rear of Lord Nelson pub as requested,26/08/2016,114780,480.00,Revenue,Treescape North West Ltd,17688
Chorley Borough Council,http://statistics.data.gov.uk/id/local-authority/30UE,Service Management & Support,1009,NEW Customer & Digital,External Contractor,40198,Miscellaneous Expenses,5034,Carryout crown lifting and pruning to trees at Hardy Drive as per instruction,26/08/2016,114780,"1,240.00",Revenue,Treescape North West Ltd,17688
Chorley Borough Council,http://statistics.data.gov.uk/id/local-authority/30UE,Service Management & Support,1009,NEW Customer & Digital,Transport Operating Leases,30029,Contrct Hire & Operating Lease,5018,Lease Rental 26th August 2016 to 25th August 2017 Swingo Compact Sweeper AE14 AXX,26/08/2016,114671,"13,013.10",Revenue,Triple Point Lease Partners,71646
Chorley Borough Council,http://statistics.data.gov.uk/id/local-authority/30UE,Service Management & Support,1009,NEW Customer & Digital,Transport Operating Leases,30029,Contrct Hire & Operating Lease,5018,Lease Rental 26th August 2016 to 25th August 2017 Swingo Compact Sweeper AE14 AXW,26/08/2016,114671,"13,013.09",Revenue,Triple Point Lease Partners,71646
Chorley Borough Council,http://statistics.data.gov.uk/id/local-authority/30UE,Business Support,1095,NEW Business Development & Growth,Grants To Other Organisations,40127,Grants and Subscriptions,5031,growth grant,12/08/2016,114642,"3,000.00",Revenue,NAME REDACTED,73455
Chorley Borough Council,http://statistics.data.gov.uk/id/local-authority/30UE,Democratic Represent and  Mgnt,1007,NEW Policy & Governance,Grants To Other Organisations,40127,Grants and Subscriptions,5031,councillor grant,12/08/2016,114643,250.00,Revenue,Two Trees Community Garden,66384
Chorley Borough Council,http://statistics.data.gov.uk/id/local-authority/30UE,Service Management & Support,1009,NEW Customer & Digital,Petrol,30005,Direct Transport Costs,5016,Jul-16,15/08/2016,114603,781.25,Revenue,Uk Fuels Ltd,57996
Chorley Borough Council,http://statistics.data.gov.uk/id/local-authority/30UE,Unapportionable Central OHeads,1009,NEW Policy & Governance,Miscellaneous Expenses,40200,Miscellaneous Expenses,5034,levels 1-5,24/08/2016,114903,"1,420.24",Revenue,UK Healthcare (BDHSC),17241
Chorley Borough Council,http://statistics.data.gov.uk/id/local-authority/30UE,Control Accounts,Control,NEW Policy & Governance,General Balances,100,Balance Sheet,Balance,top ups,24/08/2016,114903,621.11,Revenue,UK Healthcare (BDHSC),17241
Chorley Borough Council,http://statistics.data.gov.uk/id/local-authority/30UE,Unapportionable Central OHeads,1009,NEW Policy & Governance,Miscellaneous Expenses,40200,Miscellaneous Expenses,5034,levels 1-5,31/08/2016,115131,"1,463.54",Revenue,UK Healthcare (BDHSC),17241
Chorley Borough Council,http://statistics.data.gov.uk/id/local-authority/30UE,Control Accounts,Control,NEW Policy & Governance,General Balances,100,Balance Sheet,Balance,top ups,31/08/2016,115131,654.59,Revenue,UK Healthcare (BDHSC),17241
Chorley Borough Council,http://statistics.data.gov.uk/id/local-authority/30UE,Tourism,1039,NEW Policy & Governance,Children's Activities,40188,Miscellaneous Expenses,5034,2 x face painters for each day of the Chorley Flower Show,03/08/2016,114410,700.00,Revenue,UK Media and Events Limited,71221
Chorley Borough Council,http://statistics.data.gov.uk/id/local-authority/30UE,Economic Development,1096,NEW Business Development & Growth,Exhibitions & Special Events,40158,Miscellaneous Expenses,5034,Stand 94 NPH Exhibition February x 2 day event - Manchester as per quotation,17/08/2016,114713,"3,000.00",Revenue,UK Northern Powerhouse Ltd,74450
Chorley Borough Council,http://statistics.data.gov.uk/id/local-authority/30UE,Unapportionable Central OHeads,1009,NEW Customer & Digital,Postages,40082,Communication and Computing,5028,Imail Eco Business mono Letters - Hybrid,03/08/2016,114357,448.55,Revenue,UKMAIL Ltd (Mail),57758
Chorley Borough Council,http://statistics.data.gov.uk/id/local-authority/30UE,Unapportionable Central OHeads,1009,NEW Customer & Digital,Postages,40082,Communication and Computing,5028,Imail Eco Business mono Letters - Hybrid,03/08/2016,114371,891.35,Revenue,UKMAIL Ltd (Mail),57758
Chorley Borough Council,http://statistics.data.gov.uk/id/local-authority/30UE,Unapportionable Central OHeads,1009,NEW Customer & Digital,Postages,40082,Communication and Computing,5028,Imail Eco Business mono Letters - Hybrid,10/08/2016,114522,893.30,Revenue,UKMAIL Ltd (Mail),57758
Chorley Borough Council,http://statistics.data.gov.uk/id/local-authority/30UE,Unapportionable Central OHeads,1009,NEW Customer & Digital,Postages,40082,Communication and Computing,5028,Imail Eco Business mono Letters - Hybrid,24/08/2016,114943,604.60,Revenue,UKMAIL Ltd (Mail),57758
Chorley Borough Council,http://statistics.data.gov.uk/id/local-authority/30UE,Unapportionable Central OHeads,1009,NEW Customer & Digital,Postages,40082,Communication and Computing,5028,Imail Eco Business mono Letters - Hybrid,24/08/2016,114949,513.21,Revenue,UKMAIL Ltd (Mail),57758
Chorley Borough Council,http://statistics.data.gov.uk/id/local-authority/30UE,Control Accounts,Control,NEW Policy & Governance,General Balances,100,Balance Sheet,Balance,august deductions,12/08/2016,114806,"1,527.40",Revenue,Unify Credit Union Ltd,55509
Chorley Borough Council,http://statistics.data.gov.uk/id/local-authority/30UE,Business Support,1095,NEW Business Development & Growth,Miscellaneous Expenses,40200,Miscellaneous Expenses,5034,For delinquent business loans - Unify Credit Union,18/08/2016,114934,500.00,Revenue,Unify Credit Union Ltd,55509
Chorley Borough Council,http://statistics.data.gov.uk/id/local-authority/30UE,Corporate Management,1008,NEW Business Development & Growth,Water - Metered Supplies,20022,Water Services,5009,Toilets,10/08/2016,114597,"2,004.77",Revenue,United Utilities Water Plc,17926
Chorley Borough Council,http://statistics.data.gov.uk/id/local-authority/30UE,Unapportionable Central OHeads,1009,NEW Business Development & Growth,Water - Metered Supplies,20022,Water Services,5009,Byron  street,10/08/2016,114598,977.44,Revenue,United Utilities Water Plc,17926
Chorley Borough Council,http://statistics.data.gov.uk/id/local-authority/30UE,Development Control,1091,NEW Customer & Digital,Professional Fees,40063,Services,5027,planning support,12/08/2016,114437,"2,985.25",Revenue,Urban Vision Partnership Ltd,21181
Chorley Borough Council,http://statistics.data.gov.uk/id/local-authority/30UE,Development Control,1091,NEW Customer & Digital,Professional Fees,40063,Services,5027,planning support,12/08/2016,114438,"1,961.40",Revenue,Urban Vision Partnership Ltd,21181
Chorley Borough Council,http://statistics.data.gov.uk/id/local-authority/30UE,Development Control,1091,NEW Customer & Digital,Professional Fees,40063,Services,5027,planning support,12/08/2016,114439,"1,603.50",Revenue,Urban Vision Partnership Ltd,21181
Chorley Borough Council,http://statistics.data.gov.uk/id/local-authority/30UE,Development Control,1091,NEW Customer & Digital,Professional Fees,40063,Services,5027,plaanning support,12/08/2016,114440,272.50,Revenue,Urban Vision Partnership Ltd,21181
Chorley Borough Council,http://statistics.data.gov.uk/id/local-authority/30UE,Corporate Management,1008,NEW Customer & Digital,"Hackney Badges, Plates Etc.",40023,"Equipment, Furniture & Materia",5023,060023 - Platform universal size 4 kit 1 pack of 25,17/08/2016,114830,145.65,Revenue,VIP-SYSTEM LIMITED,69902
Chorley Borough Council,http://statistics.data.gov.uk/id/local-authority/30UE,Corporate Management,1008,NEW Customer & Digital,"Hackney Badges, Plates Etc.",40023,"Equipment, Furniture & Materia",5023,"012400 - Chorley: Flexiplate, clear, size4f, type A adhesive 1 pack of 50",17/08/2016,114830,117.45,Revenue,VIP-SYSTEM LIMITED,69902
Chorley Borough Council,http://statistics.data.gov.uk/id/local-authority/30UE,Central Support Services,1009,NEW Customer & Digital,Internet Charges,40104,Communication and Computing,5028,internet charges,26/08/2016,114976,"1,425.17",Revenue,Virgin Media Payments Ltd,17632
Chorley Borough Council,http://statistics.data.gov.uk/id/local-authority/30UE,Tourism,1039,NEW Policy & Governance,Professional Fees,40063,Services,5027,Professional Fees,24/08/2016,115004,400.00,Revenue,W Robinson & Son,76211
Chorley Borough Council,http://statistics.data.gov.uk/id/local-authority/30UE,Tourism,1039,NEW Policy & Governance,Professional Fees,40063,Services,5027,prize money,24/08/2016,114899,400.00,Revenue,Wacks Wicked Plants,71501
Chorley Borough Council,http://statistics.data.gov.uk/id/local-authority/30UE,Business Support,1095,NEW Business Development & Growth,Asset Maintenance Fund,20012,Repairs Maintenance & Alts,5005,Extra works to flooring at ADDRESS REDACTED,26/08/2016,114875,496.00,Revenue,West Lancashire Flooring Limited,69997
Chorley Borough Council,http://statistics.data.gov.uk/id/local-authority/30UE,Capital,Capital,NEW Customer & Digital,Main Contractor,3007,Capital Expenditure,Capital,Carry out feasibility and associated works at King George V Field as per submission of 8/3/16,26/08/2016,114523,"6,040.00",Capital,Westlakes Engineering Ltd,74337
Chorley Borough Council,http://statistics.data.gov.uk/id/local-authority/30UE,Capital,Capital,NEW Customer & Digital,Main Contractor,3007,Capital Expenditure,Capital,Engineering Services at Yarrow Valley Country Park Car Park as detailed in Quotation 2243/GE/L001,26/08/2016,114935,"5,000.00",Capital,Westlakes Engineering Ltd,74337
Chorley Borough Council,http://statistics.data.gov.uk/id/local-authority/30UE,Unapportionable Central OHeads,1009,NEW Chief Executive,Postages,40082,Communication and Computing,5028,"Mail Collection for Town Hall and Union Street, April 2016 - March 2017",03/08/2016,114408,281.23,Revenue,Whistl North Limited,67256
Chorley Borough Council,http://statistics.data.gov.uk/id/local-authority/30UE,Unapportionable Central OHeads,1009,NEW Chief Executive,Postages,40082,Communication and Computing,5028,"Mail Collection for Town Hall and Union Street, April 2016 - March 2017",03/08/2016,114423,339.16,Revenue,Whistl North Limited,67256
Chorley Borough Council,http://statistics.data.gov.uk/id/local-authority/30UE,Unapportionable Central OHeads,1009,NEW Chief Executive,Postages,40082,Communication and Computing,5028,"Mail Collection for Town Hall and Union Street, April 2016 - March 2017",26/08/2016,115092,286.88,Revenue,Whistl North Limited,67256
Chorley Borough Council,http://statistics.data.gov.uk/id/local-authority/30UE,Unapportionable Central OHeads,1009,NEW Chief Executive,Postages,40082,Communication and Computing,5028,"Mail Collection for Town Hall and Union Street, April 2016 - March 2017",26/08/2016,115114,350.05,Revenue,Whistl North Limited,67256
Chorley Borough Council,http://statistics.data.gov.uk/id/local-authority/30UE,Tourism,1039,NEW Customer & Digital,External Contractor,40198,Miscellaneous Expenses,5034,Hire of Ferris Wheel for Chorley Flower Show 30th and 31st July 2016,26/08/2016,114975,"3,500.00",Revenue,Whyatts Amusements,76057
Chorley Borough Council,http://statistics.data.gov.uk/id/local-authority/30UE,Capital,Capital,NEW Business Development & Growth,Main Contractor,3007,Capital Expenditure,Capital,"Education Team - 4 Full day sessions with Westwood Primary School, Clayton-le-Woods Chorley to be scheduled from end ",18/08/2016,114896,"1,000.00",Capital,Wildlife Trust for Lancs Manchester & N Merseyside,20377
Chorley Borough Council,http://statistics.data.gov.uk/id/local-authority/30UE,Tourism,1039,NEW Policy & Governance,Professional Fees,40063,Services,5027,Willow artists demonstrations for the two days of the Chorley Flower Show,12/08/2016,114694,300.00,Revenue,Willowpool Designs,70614
